Cogmind - Beta 10 X1 @@@ ROGUE MODE // 2020.06.27 @ 22:59:19 Player: SirMrDrProf Result: Escaped singularity! Performance ------------- Evolutions (9) 4500 Regions Visited (37) 7400 Robots Destroyed (240) 1200 Value Destroyed (13650) 13650 Prototype IDs (106) 2120 Alien Tech Used (13) 2600 Bonus (54689) 54689 TOTAL SCORE: 86159 Bonus ------- Triggered High Security 500 High Alert Combat Kills 2735 Follower Combat Kills 3476 Network Hubs Disabled 200 Aligned with FarCom 300 Met Imprinter 300 Met Warlord at Base 500 MAIN.C Attacked Warlord 500 Built Enhanced Grunts 300 A7 Reached Mainframe 300 Found Hidden Lab 3000 Met Warlord at Research 2000 Met Sigix 2000 Destroyed MAIN.C Guards 500 Met MAIN.C 5000 Destroyed MAIN.C Shell 5000 Destroyed MAIN.C 10000 Met Architect 300 Destroyed A8 300 Destroyed A6 400 Destroyed A5 500 Destroyed A4 700 Destroyed A3 800 Destroyed A2 1000 Destroyed Architect 15000 Win 3000 Friendly Fire -3922 Cogmind --------- Core Integrity 1132/1600 Matter 290/300 Energy 636/700 System Corruption 0% Temperature Cool (30) Movement Flying (9) Location Near Former Tau Ceti IV Parts ------- > --- POWER (2) -------- Vortex Chain Reactor > --- PROPULSION (8) --- Electron Diverter Electron Diverter Electron Diverter Electron Diverter Electron Diverter Improved Diametric Drive Improved Q-thruster Cooled Q-thruster > --- UTILITY (14) ----- Experimental Power Amplifier Experimental Cooling System Large Storage Unit Experimental Terrain Scan Processor Experimental Melee Analysis Suite Experimental Melee Analysis Suite Advanced Armor Integrity Analyzer Microactuators Nanoactuators Experimental Phase Shifter Centrium Linked Plating Experimental Powered Armor Experimental Thermal Shield > --- WEAPON (2) ------- Sigix Broadsword > --- INVENTORY (10) --- Cooled Field Propulsion Drive Electron Diverter Experimental Energy Well (1000) Experimental Terrain Scanner Precision Energy Filter EM Dispersion Field AEGIS Remote Shield Core Regenerator Hellfire Missile Launcher Peak State ------------ > --- POWER ------------ Vortex Chain Reactor > --- PROPULSION ------- Electron Diverter Electron Diverter Electron Diverter Electron Diverter Electron Diverter Improved Diametric Drive Improved Q-thruster Cooled Q-thruster > --- UTILITY ---------- Experimental Power Amplifier Experimental Cooling System Large Storage Unit Experimental Terrain Scan Processor Experimental Melee Analysis Suite Experimental Melee Analysis Suite Advanced Armor Integrity Analyzer Microactuators Nanoactuators Experimental Phase Shifter Centrium Linked Plating Experimental Powered Armor Experimental Thermal Shield AEGIS Remote Shield > --- WEAPON ----------- Sigix Broadsword > --- INVENTORY -------- Cooled Field Propulsion Drive Electron Diverter Experimental Energy Well Experimental Terrain Scanner Precision Energy Filter EM Dispersion Field High-powered Transdimensional Reconstructor Core Regenerator Integrated Reactor Hellfire Missile Launcher [Rating: 238] Favorites ----------- Power Vortex Chain Reactor Engine Cooled Deuterium Engine Power Core Micro Fission Core Reactor Vortex Chain Reactor Propulsion Electron Diverter Leg Potential Leg Hover Unit Improved Airjet Flight Unit Electron Diverter Utility Nanoactuators Device Nanoactuators Storage Medium Storage Unit Processor Modified TNC Hackware Hacking Suite Protection Experimental Powered Armor Artifact Stasis Generator Weapon Sigix Broadsword Energy Gun EM Shotgun Energy Cannon Advanced Beam Cannon Ballistic Gun Enhanced Autogun Ballistic Cannon Mini Assault Cannon Launcher Grenade Launcher Impact Weapon Makeshift Hammer Slashing Weapon Sigix Broadsword Piercing Weapon Plasma Lance Build | -11 -10 -10 -10 -9 -8 -7 -7 -7 -7 -6 -6 -6 -6 -6 -6 -5 -5 -5 -5 -5 -5 -5 -5 -4 -4 -4 -4 -3 -3 -3 -3 -2 -2 -2 -1 -1 -1 ------- Run | Scr Mat Min Exi Min Mat Fac Was Fac Sto Fac Was Fac Low Low Zio Pro Fac Was Fac Ext Cet Arc Hub Fac Upp Upp War Pro Res Arm Lab Res Qua Sec Acc Com Ac0 Slots Evolved 18 | . . . . . 4 2 . . . 2 . . . . . . 2 . . . . . . 2 . . . . 2 . . 2 . . 2 . . Power 1 | . . . . . . . . . . 1 . . . . . . . . . . . . . . . . . . . . . . . . . . . Propulsion 5 | . . . . . 1 1 . . . . . . . . . . 1 . . . . . . 1 . . . . . . . . . . 1 . . Utility 12 | . . . . . 3 1 . . . 1 . . . . . . 1 . . . . . . 1 . . . . 2 . . 2 . . 1 . . Weapon . | . . . . . . . . . . . . . . . . . . . . . . . . . . . . . . . . . . . . . . Parts Attached 294 | 2 5 7 13 2 17 12 . 8 6 12 . 7 3 3 7 1 14 6 1 4 7 . . 16 . 1 6 . 7 10 10 15 16 11 7 24 34 Power 19 | . 1 2 2 . . 1 . 1 . 2 . 1 . 1 3 . 3 . . . . . . 1 . . 1 . . . . . . . . . . Engine 9 | . 1 2 1 . . . . 1 . 1 . . . . 2 . 1 . . . . . . . . . . . . . . . . . . . . Core 6 | . . . . . . . . . . 1 . 1 . 1 1 . 2 . . . . . . . . . . . . . . . . . . . . Reactor 4 | . . . 1 . . 1 . . . . . . . . . . . . . . . . . 1 . . 1 . . . . . . . . . . Propulsion 53 | . . 3 2 . 5 5 . 1 2 7 . 4 . . . . 4 . . 1 . . . 5 . . . . 2 3 1 2 1 . 2 1 2 Treads . | . . . . . . . . . . . . . . . . . . . . . . . . . . . . . . . . . . . . . . Leg 2 | . . . 2 . . . . . . . . . . . . . . . . . . . . . . . . . . . . . . . . . . Wheel . | . . . . . . . . . . . . . . . . . . . . . . . . . . . . . . . . . . . . . . Hover 13 | . . . . . 4 5 . 1 2 1 . . . . . . . . . . . . . . . . . . . . . . . . . . . Flight 38 | . . 3 . . 1 . . . . 6 . 4 . . . . 4 . . 1 . . . 5 . . . . 2 3 1 2 1 . 2 1 2 Utility 154 | . 1 . 5 . 5 3 . 3 1 3 . 1 . 2 2 . 5 4 1 1 6 . . 9 . 1 5 . 3 2 6 10 12 11 5 19 28 Device 90 | . . . 1 . 1 . . 2 1 2 . 1 . 2 . . 2 2 1 . 1 . . 6 . 1 4 . . 1 4 7 6 9 3 13 20 Storage 11 | . . . 3 . 1 . . . . . . . . . . . . . . . 1 . . . . . . . 1 . . . . 1 1 3 . Processor 11 | . . . 1 . . . . . . 1 . . . . . . . . . . . . . 1 . . 1 . . 1 . 2 1 1 1 1 . Hackware 13 | . 1 . . . 1 1 . . . . . . . . 1 . 1 . . 1 1 . . 2 . . . . 2 . 1 . . . . . 1 Protection 27 | . . . . . 2 2 . 1 . . . . . . 1 . 2 2 . . 3 . . . . . . . . . 1 1 3 . . 2 7 Artifact 2 | . . . . . . . . . . . . . . . . . . . . . . . . . . . . . . . . . 2 . . . . Weapon 68 | 2 3 2 4 2 7 3 . 3 3 . . 1 3 . 2 1 2 2 . 2 1 . . 1 . . . . 2 5 3 3 3 . . 4 4 Energy Gun 8 | 1 1 . . 1 3 . . . . . . . . . 1 . . . . . . . . . . . . . . . . . . . . . 1 Energy Cannon 4 | . . . . . 1 1 . . 1 . . . . . . . . . . . . . . . . . . . . . 1 . . . . . . Ballistic Gun 17 | 1 2 2 1 1 3 1 . 2 1 . . . . . . 1 . 1 . . 1 . . . . . . . . . . . . . . . . Ballistic Cannon 3 | . . . . . . . . . 1 . . . 2 . . . . . . . . . . . . . . . . . . . . . . . . Launcher 21 | . . . 2 . . 1 . 1 . . . 1 1 . . . 2 1 . 1 . . . . . . . . 1 5 1 1 . . . 2 1 Special Weapon . | . . . . . . . . . . . . . . . . . . . . . . . . . . . . . . . . . . . . . . Impact Weapon 2 | . . . 1 . . . . . . . . . . . . . . . . . . . . . . . . . . . . . 1 . . . . Slashing Weapon 11 | . . . . . . . . . . . . . . . 1 . . . . 1 . . . 1 . . . . 1 . 1 . 2 . . 2 2 Piercing Weapon 2 | . . . . . . . . . . . . . . . . . . . . . . . . . . . . . . . . 2 . . . . . Special Melee Weapon . | . . . . . . . . . . . . . . . . . . . . . . . . . . . . . . . . . . . . . . Unidentified Prototypes 73 | . . . 2 . 3 1 . 1 1 2 . 1 . . 1 . 2 1 . . 4 . . 3 . 1 3 . . 2 3 10 9 4 . 7 12 Parts Lost 20 | . 1 . 3 . 3 . . . 1 . . . 2 . . . 1 . . 2 . . 3 . . . . . . 1 . 1 . 1 . . 1 Power 2 | . . . 1 . . . . . . . . . . . . . 1 . . . . . . . . . . . . . . . . . . . . Propulsion 2 | . . . . . 1 . . . . . . . . . . . . . . 1 . . . . . . . . . . . . . . . . . Utility 10 | . . . . . . . . . 1 . . . 2 . . . . . . 1 . . 2 . . . . . . 1 . 1 . 1 . . 1 Weapon 6 | . 1 . 2 . 2 . . . . . . . . . . . . . . . . . 1 . . . . . . . . . . . . . . Highest Loss Streak 2 | . 1 . 2 . 2 . . . 1 . . . 1 . . . 1 . . 1 . . 2 . . . . . . 1 . 1 . 1 . . 1 Average Slot Usage (%) 91 | . 34 75 93 100 87 99 100 99 98 88 86 99 90 94 97 100 94 96 100 99 100 100 95 92 100 97 88 85 83 90 89 83 83 86 88 92 91 Engine 2 | . . 10 9 . . . . 1 7 6 6 6 6 6 6 6 6 5 5 5 5 5 5 2 . . . . . . . . . . . . . Core 1 | . . . . . . . . . . 2 . 5 6 6 5 6 3 5 5 5 5 5 5 5 5 5 1 . . . . . . . . . . Reactor 2 | . . . 1 14 9 7 7 5 . . . . . . . . . . . . . . . 2 5 5 5 5 4 4 4 4 4 4 3 3 3 Leg 2 | . . . 26 28 7 . . . . . . . . . . . . . . . . . . . . . . . . . . . . . . . . Hover 3 | . . . . . 16 30 30 29 30 9 . . . . . . . . . . . . . . . . . . . . . . . . . . . Flight 22 | . . 22 1 . . . . . . 16 26 26 26 26 26 26 29 29 29 29 29 29 29 31 31 30 30 30 28 31 31 29 29 29 30 30 30 Device 16 | . . . . . 4 7 7 7 8 13 13 19 10 14 13 13 15 21 23 17 17 17 16 17 21 20 23 25 22 21 17 17 20 19 20 25 25 Storage 2 | . . . 4 14 9 7 7 7 7 2 . . . . . . . . . . . . . . . . . . . . . . . 3 3 3 3 Processor 11 | . . . 11 14 9 7 7 7 7 9 13 13 13 13 13 13 11 11 11 11 11 11 11 10 10 10 10 10 9 8 9 10 12 12 13 15 15 Hackware 9 | . 5 14 9 . 4 14 15 15 15 13 13 13 13 13 12 13 11 6 5 10 11 11 7 8 10 10 10 10 13 18 14 8 8 8 7 3 . Protection 3 | . . . . . 8 7 7 7 4 . . . . . 3 6 5 5 5 5 5 5 5 5 5 5 1 . . . 2 4 3 4 3 3 6 Ballistic Gun 4 | . 16 28 13 1 8 7 7 7 9 6 6 6 6 6 5 3 . 2 5 5 5 5 5 5 5 5 1 . . . . . . . . . . Launcher 1 | . . . 8 12 . . . . . . . 1 4 . . . 2 . . . . . . . . . . . . 1 3 3 . . . . . Slashing Weapon 2 | . . . . . . . . . . . . . . . 5 6 5 5 5 5 5 5 4 2 5 5 5 5 4 4 4 4 3 4 3 2 2 Naked Turns . | . . . . . . . . . . . . . . . . . . . . . . . . . . . . . . . . . . . . . . Heaviest Build 109 | 2 3 7 50 50 52 51 38 41 38 43 21 34 34 31 32 32 36 39 39 39 38 38 38 40 40 40 52 47 50 58 78 83 83 86 94 107 109 Greatest Support 121 | 3 3 8 60 60 60 52 52 52 52 52 26 44 44 32 32 32 40 40 40 40 38 38 38 40 40 40 48 48 53 73 78 90 92 102 118 118 121 Greatest Overweight (x) 3 | . . . . . 1 . . . . 3 . . . . . . . . . 1 . . . . . . 1 . . . . . . . . . . Average Overweight (x) . | . . . . . . . . . . . . . . . . . . . . . . . . . . . . . . . . . . . . . . Largest Inventory Capacity 16 | 4 4 4 12 12 16 8 8 8 8 8 4 4 4 4 4 4 4 4 4 4 4 4 4 4 4 4 4 4 4 4 4 4 4 8 10 10 10 Average Capacity 5 | 4 4 4 5 12 9 8 8 8 8 5 4 4 4 4 4 4 4 4 4 4 4 4 4 4 4 4 4 4 4 4 4 4 4 7 8 10 10 Most Carried 10 | 3 4 4 5 8 10 8 8 8 8 8 4 4 4 4 4 4 4 4 4 4 4 4 4 4 4 4 4 4 4 4 4 4 4 8 9 10 10 Average Carried 5 | 1 3 3 3 5 8 7 8 8 8 5 4 3 4 4 4 4 3 4 4 3 3 4 4 3 3 4 4 4 3 3 3 3 3 5 7 8 8 Final Capacity 12 | 4 4 4 12 12 8 8 8 8 8 4 4 4 4 4 4 4 4 4 4 4 4 4 4 4 4 4 4 4 4 4 4 4 4 8 10 10 10 Final Carried 9 | 3 4 4 5 8 8 8 8 8 8 4 4 4 4 4 4 4 4 4 4 4 4 4 4 4 4 4 4 4 4 4 4 4 4 8 9 6 9 Class Distribution -------------------- 23% | Machinist-Scout 14% | Machinist-Sprinter 11% | Mutant 11% | Hacker-Scout 9% | Hacker-Mutant 8% | Scavenger-Sprinter 7% | Hacker-Sprinter 6% | Scavenger-Scout Dominant Class ---------------- Mutant | -10/Materials Scavenger-Mutant | -10/Mines Mutant | -10/Exiles Mutant | -9/Mines Mutant | -8/Materials Hacker-Mutant | -7/Factory Hacker-Mutant | -7/Waste Hacker-Mutant | -7/Factory Hacker-Mutant | -7/Storage Hacker-Scout | -6/Factory Hacker-Scout | -6/Waste Hacker-Scout | -6/Factory Hacker-Sprinter | -6/Lower Caves Hacker-Sprinter | -6/Lower Caves Hacker-Sprinter | -6/Zion Scavenger-Sprinter | -5/Proximity Caves Machinist-Scout | -5/Factory Machinist-Scout | -5/Waste Machinist-Scout | -5/Factory Machinist-Sprinter | -5/Extension Commander-Sprinter | -5/Cetus Scavenger-Sprinter | -5/Archives Scavenger-Sprinter | -5/Hub_04(d) Scavenger-Scout | -4/Factory Scavenger-Scout | -4/Upper Caves Scavenger-Scout | -4/Upper Caves Hacker-Scout | -4/Warlord Hacker-Scout | -3/Proximity Caves Hacker-Scout | -3/Research Hacker-Scout | -3/Armory Hacker-Scout | -3/Lab Machinist-Scout | -2/Research Machinist-Scout | -2/Quarantine Machinist-Sprinter | -2/Section 7 Machinist-Sprinter | -1/Access Machinist-Scout | -1/Command Machinist-Sprinter | -1/Access_0 Resources | -11 -10 -10 -10 -9 -8 -7 -7 -7 -7 -6 -6 -6 -6 -6 -6 -5 -5 -5 -5 -5 -5 -5 -5 -4 -4 -4 -4 -3 -3 -3 -3 -2 -2 -2 -1 -1 -1 ----------- Run | Scr Mat Min Exi Min Mat Fac Was Fac Sto Fac Was Fac Low Low Zio Pro Fac Was Fac Ext Cet Arc Hub Fac Upp Upp War Pro Res Arm Lab Res Qua Sec Acc Com Ac0 Matter Collected 5536 | 217 26 131 491 8 280 89 . 222 432 78 171 16 176 79 244 . 216 60 30 55 85 40 18 239 37 37 33 54 88 239 . 270 200 130 110 450 485 Remotely . | . . . . . . . . . . . . . . . . . . . . . . . . . . . . . . . . . . . . . . Salvage Created 13476 | . 145 127 198 . 694 294 . 289 491 112 . 76 172 . 367 . 383 327 209 137 87 . 132 273 14 55 . . . 417 . 741 829 983 784 2013 3127 Parts 602 | . 7 8 32 . 44 17 . 22 20 3 . 3 8 . 20 . 18 3 9 5 6 . 11 19 . 2 . . . 27 . 29 . 54 28 63 144 Haulers Intercepted 20 | . 1 . . . 2 2 . 1 1 1 . . . . . . 3 . . . . . . 1 . . . . . . . 6 1 1 . . . Recyclers Shooed 5 | . . 2 . . 1 . . . . . . . . . . . . . . . . . . . . . . . . . . . . . . 2 . Parts Field Recycled . | . . . . . . . . . . . . . . . . . . . . . . . . . . . . . . . . . . . . . . Retrieved Matter . | . . . . . . . . . . . . . . . . . . . . . . . . . . . . . . . . . . . . . . Parts Self-Destructed 38 | . . . . . . . . . . . . . 10 . . . . . . . . . . . . . 28 . . . . . . . . . . Prevented 1 | . . . . . . . . . . . . . . . . . . . . . . . . . . . 1 . . . . . . . . . . Kills | -11 -10 -10 -10 -9 -8 -7 -7 -7 -7 -6 -6 -6 -6 -6 -6 -5 -5 -5 -5 -5 -5 -5 -5 -4 -4 -4 -4 -3 -3 -3 -3 -2 -2 -2 -1 -1 -1 ------- Run | Scr Mat Min Exi Min Mat Fac Was Fac Sto Fac Was Fac Low Low Zio Pro Fac Was Fac Ext Cet Arc Hub Fac Upp Upp War Pro Res Arm Lab Res Qua Sec Acc Com Ac0 Combat Hostiles Destroyed 166 | . 2 3 3 . 15 7 . 3 8 1 . 2 4 . 5 . 2 . 3 3 . . 1 1 . . . . . 14 . 1 5 9 10 25 39 Melee 90 | . . . . . . . . . . . . . . . 4 . 1 . 3 1 . . . 1 . . . . . 4 . 1 3 9 10 15 38 Guns 28 | . 2 3 . . 12 1 . 3 4 . . . . . 1 . . . . 1 . . 1 . . . . . . . . . . . . . . Cannons 5 | . . . . . . . . . 4 1 . . . . . . . . . . . . . . . . . . . . . . . . . . . AOE 41 | . . . 3 . 3 6 . . . . . 2 4 . . . 1 . . 1 . . . . . . . . . 10 . . . . . 10 1 Classes Destroyed 25 | . 2 2 3 . 3 . . 1 . . . 1 1 . 2 . 2 . 1 1 . . . . . 1 . . . 1 . . 1 1 . 2 . Worker 12 | . . . . . 1 . . . 1 . . . . . . . . . . . . . 3 2 . . . . . . . 2 . . . 3 . Builder 2 | . . . . . . . . . . . . . . . . . 2 . . . . . . . . . . . . . . . . . . . . Tunneler 1 | . . . . . . . . . . . . . . . . . 1 . . . . . . . . . . . . . . . . . . . . Hauler 20 | . 1 . . . 2 2 . 1 1 1 . . . . . . 3 . . . . . . 1 . . . . . . . 6 1 1 . . . Recycler 6 | . . 1 . . 1 . . 1 . . . . . . . . . . . . . . . . . . . . . . . . . . . 3 . Carrier 1 | . . . . . . . . . . . . . . . . . . . . . . . . . . . . . . . . . . . . 1 . Operator 6 | . . . . . . . . . . . . 1 . . . . . . . . . . 1 2 . . . . . 1 . . 1 . . . . Turret 1 | . . . 1 . . . . . . . . . . . . . . . . . . . . . . . . . . . . . . . . . . Watcher 9 | . . . . . 1 . . 1 . . . . . . . . . . 1 . . . . 1 . . . . . 1 . 2 . 1 . 1 . Swarmer 36 | . . 3 . . 8 3 . . . . . . . . . . . . . . . . . . . . . . . 11 . . . . 1 10 . Grunt 35 | . 2 . . . 4 3 . 1 4 . . 2 3 . . . 1 . 1 1 . . 1 . . . . . . . . 1 4 . 6 1 . Brawler 1 | . . . . . . . . . . . . . . . . . . . . . . . . . . . . . . . . . . . . 1 . Duelist 2 | . . . . . . . . . . . . . 1 . . . . . . . . . . . . . . . . . . . . . 1 . . Protector 1 | . . . . . . . . . . . . . . . . . . . . . . . . . . . . . . 1 . . . . . . . Researcher 3 | . . . . . . . . . . . . . . . . . . . . . . . . . . 1 . . . . . . . 2 . . . Sentry 20 | . . . . . 3 1 . 1 4 . . . . . . . . . 1 1 . . . 1 . . . . . 1 . . . 3 1 3 . Hunter 5 | . . . . . . . . . . . . . . . . . . . 1 . . . . . . . . . . . . . . 2 . 2 . Programmer 11 | . . . . . . . . 1 . 1 . . . . . . 1 . . . . . . . . . . . . 1 . . . 3 1 3 . Behemoth 2 | . . . . . . . . . . . . . . . . . . . . 1 . . . . . . . . . . . . . . . 1 . M Guard 2 | . . . . . . . . . . . . . . . . . . . . . . . . . . . . . . . . . . . . 2 . Enhanced Grunt 25 | . . . . . . . . . . . . . . . . . . . . . . . . . . . . . . . . . . . . . 25 Enhanced Sentry 1 | . . . . . . . . . . . . . . . . . . . . . . . . . . . . . . . . . . . . . 1 Enhanced Hunter 6 | . . . . . . . . . . . . . . . . . . . . . . . . . . . . . . . . . . . . . 6 Combat Programmer 2 | . . . . . . . . . . . . . . . . . . . . . . . . . . . . . . . . . . . . 2 . Alpha 7 1 | . . . . . . . . . . . . . . . . . . . . . . . . . . . . . . . . . . 1 . . . Fortress 1 | . . . . . . . . . . . . . . . . . . . . . . . . . . . . . . . . . 1 . . . . Zionite 6 | . . . 6 . . . . . . . . . . . . . . . . . . . . . . . . . . . . . . . . . . Decomposer 1 | . . . . . . . . . . . . . . . . . . . . . . . . . 1 . . . . . . . . . . . . Assembled 3 | . . . 3 . . . . . . . . . . . . . . . . . . . . . . . . . . . . . . . . . . Thug 2 | . . . . . . . . . . . . . . . 2 . . . . . . . . . . . . . . . . . . . . . . Savage 1 | . . . . . . . . . . . . . . . 1 . . . . . . . . . . . . . . . . . . . . . . Fireman 2 | . . . . . . . . . . . . . . . 2 . . . . . . . . . . . . . . . . . . . . . . Knight 1 | . . . . . . . . . . . . . . . . . . . . . . . . . . . . . . . . . . . . 1 . Best Kill Streak 10 | . 2 4 3 . 7 3 . 2 8 1 . 3 2 . 4 . 3 . 2 1 . . 4 2 . . . . . 5 . 4 4 3 6 10 4 Combat Bots Only 10 | . 2 3 3 . 6 3 . 1 5 1 . 2 2 . 4 . 1 . 1 1 . . 1 1 . . . . . 5 . 1 4 3 6 10 4 Max Kills in Single Turn 4 | . 1 1 2 . 3 3 . 1 1 1 . 2 1 . 1 . 3 . 1 1 1 . 4 1 1 1 . . . 3 . 2 1 1 1 3 1 Gunslinging . | . . . . . . . . . . . . . . . . . . . . . . . . . . . . . . . . . . . . . . Exploded 3 | . . . 2 . 3 3 . . . . . 2 1 . . . 1 . . 1 . . . . . . . . . 3 . . . . . 3 1 Melee 1 | . . . . . . . . . . . . . . . 1 . 1 . 1 1 . . . 1 . . . . . 1 . 1 1 1 1 1 1 Uniques/NPCs Destroyed 12 | . . . 2 . . . . . . . . . . . 1 . . . . . 1 . . . . . . . . . . . . . . 1 7 8R-AWN (-10/Exiles) EX-BIN (-10/Exiles) EX-HEX (-10/Exiles) EX-DEC (-10/Exiles) Imprinter (-6/Zion) A7 (-5/Cetus) MAIN.C Shell (-1/Command) MAIN.C (-1/Command) A4 (-1/Access_0) A6 (-1/Access_0) A5 (-1/Access_0) A8 (-1/Access_0) A2 (-1/Access_0) A3 (-1/Access_0) Architect (-1/Access_0) Combat | -11 -10 -10 -10 -9 -8 -7 -7 -7 -7 -6 -6 -6 -6 -6 -6 -5 -5 -5 -5 -5 -5 -5 -5 -4 -4 -4 -4 -3 -3 -3 -3 -2 -2 -2 -1 -1 -1 -------- Run | Scr Mat Min Exi Min Mat Fac Was Fac Sto Fac Was Fac Low Low Zio Pro Fac Was Fac Ext Cet Arc Hub Fac Upp Upp War Pro Res Arm Lab Res Qua Sec Acc Com Ac0 Damage Taken 10452 | . 163 139 547 10 632 298 . 254 724 48 . 123 78 . 124 . 508 . 73 390 14 57 205 325 12 . . 82 47 266 . 212 129 954 340 638 3060 Core 1238 | . 28 21 136 . 204 11 . 7 128 12 . 45 11 . 24 . 45 . . 106 14 . 18 77 . . . 24 . 26 . 73 . 30 12 25 161 Absorbed by Shields 4893 | . . . . . . . . . . 16 . . . . . . . . . . 14 . . . . . . . . 23 . . 107 995 354 578 2806 Core Remaining (%) 78 | 100 . . . 26 62 . . . 79 . . . . . . 89 . . . . . . 81 . . . . 91 . . 98 . . 87 . . 70 Volleys Fired 372 | . 11 14 80 . 50 18 8 21 51 15 . 12 9 . 10 . 2 . . 8 . . 4 30 . 9 1 . 1 6 . 1 . . . 7 4 Largest 2 | . 2 2 2 . 2 2 2 2 2 2 . 2 2 . 1 . 1 . . 1 . . 1 1 . 1 1 . 1 1 . 1 . . . 1 1 Hottest 93 | . 70 40 40 . 93 93 93 93 93 73 . 73 64 . 25 . 45 . . 39 . . 35 35 . 35 35 . 49 60 . 60 . . . 60 60 Shots Fired 552 | . 22 28 89 . 93 33 15 41 91 20 . 21 16 . 10 . 2 . . 8 . . 4 30 . 9 1 . 1 6 . 1 . . . 7 4 Gun 379 | . 22 28 56 . 91 15 7 20 60 5 . 9 6 . 10 . . . . 6 . . 4 30 . 9 1 . . . . . . . . . . Cannon 101 | . . . . . 2 15 8 20 31 15 . 10 . . . . . . . . . . . . . . . . . . . . . . . . . Launcher 72 | . . . 33 . . 3 . 1 . . . 2 10 . . . 2 . . 2 . . . . . . . . 1 6 . 1 . . . 7 4 Special . | . . . . . . . . . . . . . . . . . . . . . . . . . . . . . . . . . . . . . . Kinetic 362 | . 11 28 56 . 35 15 7 20 85 20 . 19 6 . 10 . . . . 6 . . 4 30 . 9 1 . . . . . . . . . . Thermal 82 | . 11 . . . 22 15 8 20 6 . . . . . . . . . . . . . . . . . . . . . . . . . . . . Explosive 72 | . . . 33 . . 3 . 1 . . . 2 10 . . . 2 . . 2 . . . . . . . . 1 6 . 1 . . . 7 4 Electromagnetic 36 | . . . . . 36 . . . . . . . . . . . . . . . . . . . . . . . . . . . . . . . . Robot Hit Streak 18 | . 9 10 8 . 17 9 6 10 18 7 . 3 2 . 5 . 3 . . 7 . . 9 11 . . . . . 13 . . . . . 1 3 Robot Miss Streak 7 | . 2 4 2 . 3 2 3 4 3 3 . 4 5 . 1 . 1 . . 2 . . . 2 . . . . . 1 . 2 . . . 7 . Penetration Max 1 | . . . . . . . . . . . . . . . . . . . . . . . 1 1 . . . . . . . . . . . . . Secondary Targets 3 | . . 2 . . . . . . 1 . . . . . . . . . . . . . . . . . . . . . . . . . . . . Max Gunslinging Chain 1 | . . 1 . . . . . . 1 . . . . . . . . . . . . . . . . . . . . . . . . . . . . Shots Hit Robots 818 | . 18 13 51 . 66 17 12 27 58 8 . 10 3 . 17 . 15 4 10 12 7 3 2 17 1 2 . . . 15 . 22 10 41 24 82 251 Core Hits 497 | . 8 7 34 . 51 14 3 10 21 4 . 8 13 . 10 . 20 1 4 6 2 2 8 10 . 1 . . . 25 . 10 4 18 12 49 142 Critical Hits 114 | . . . . . 2 1 . 4 6 . . . . . . . . . 1 1 . . . 2 . . . . . 2 . 1 1 11 6 20 56 Critical Kills 28 | . . . . . 1 . . 1 2 . . . . . . . . . . . . . . . . . . . . 1 . . . 4 4 6 9 Critical Parts Destroyed 62 | . . . . . 1 1 . 3 3 . . . . . . . . . 1 1 . . . 2 . . . . . 1 . 1 . 6 2 8 32 Melee Attacks 756 | . . . 18 . . . . . . . . . . . 14 . 29 4 14 16 14 3 1 12 2 5 6 . 4 29 3 39 31 80 45 108 279 Kinetic 3 | . . . . . . . . . . . . . . . . . . . . . . . . . . . . . . . . . 3 . . . . Impact 18 | . . . 18 . . . . . . . . . . . . . . . . . . . . . . . . . . . . . . . . . . Slashing 730 | . . . . . . . . . . . . . . . 14 . 29 4 14 16 14 3 1 12 2 5 6 . 4 29 3 34 28 80 45 108 279 Piercing 5 | . . . . . . . . . . . . . . . . . . . . . . . . . . . . . . . . 5 . . . . . Sneak Attacks 53 | . . . 2 . . . . . . . . . . . 1 . 5 . 2 1 7 1 . 2 1 2 . . . . . 9 2 7 1 8 2 Combat Hostiles 14 | . . . . . . . . . . . . . . . . . . . 1 1 . 1 . 1 . . . . . . . 1 1 3 1 2 2 Follow-up Attacks . | . . . . . . . . . . . . . . . . . . . . . . . . . . . . . . . . . . . . . . Damage Inflicted 57958 | . 180 94 1535 20 1015 979 223 552 1169 231 . 519 680 . 669 . 1626 220 660 654 689 187 374 867 142 397 . . . 2806 . 2462 1068 4621 2181 9843 21295 Guns 3530 | . 180 94 287 . 846 106 102 204 716 73 . 105 36 . 113 . . . . 109 . . 103 456 . . . . . . . . . . . . . Cannons 1430 | . . . . . 41 223 121 348 453 158 . 86 . . . . . . . . . . . . . . . . . . . . . . . . . Explosions 8995 | . . . 703 . 128 650 . . . . . 328 644 . . . 498 . . 232 . . 271 . . . . . . 1931 . 258 . . . 1327 2025 Melee 43974 | . . . 536 . . . . . . . . . . . 556 . 1128 220 660 313 689 187 . 411 142 397 . . . 875 . 2204 1068 4621 2181 8516 19270 Ramming 29 | . . . 9 20 . . . . . . . . . . . . . . . . . . . . . . . . . . . . . . . . . Kinetic 3748 | . 74 94 287 . 377 106 102 204 1067 231 . 191 36 . 113 . . . . 109 . . 103 456 . . . . . . . . 198 . . . . Thermal 1730 | . 106 . . . 395 635 121 348 102 . . . . . . . . . . . . . 23 . . . . . . . . . . . . . . Explosive 8184 | . . . 703 . . 238 . . . . . 328 644 . . . 498 . . 232 . . . . . . . . . 1931 . 258 . . . 1327 2025 Electromagnetic 491 | . . . . . 243 . . . . . . . . . . . . . . . . . 248 . . . . . . . . . . . . . . Impact 536 | . . . 536 . . . . . . . . . . . . . . . . . . . . . . . . . . . . . . . . . . Slashing 43098 | . . . . . . . . . . . . . . . 556 . 1128 220 660 313 689 187 . 411 142 397 . . . 875 . 2062 870 4621 2181 8516 19270 Piercing 142 | . . . . . . . . . . . . . . . . . . . . . . . . . . . . . . . . 142 . . . . . Highest Corruption 6 | . . . . . 1 . 6 6 2 2 2 5 5 5 5 . 3 3 3 3 3 3 5 . . . . . 1 2 2 . . 4 . . . Average Corruption 2 | . . . . . 1 . 6 4 2 1 2 2 5 5 5 . 2 3 3 3 3 3 3 . . . . . 1 1 2 . . 3 . . . Corruption Purged 6 | . . . . . . . . 6 . . . . . . . . . . . . . . . . . . . . . . . . . . . . . Effects 90 | . . . . . . . 2 . 4 . 2 11 5 7 . . 10 . 3 14 5 1 1 . . . . . 1 9 1 . . 14 . . . Message Errors 21 | . . . . . . . . . . . 1 6 1 . . . . . 1 3 . . . . . . . . 1 4 . . . 4 . . . Matter Fused 14 | . . . . . . . . . . . . . 1 2 . . 4 . 2 4 . . 1 . . . . . . . . . . . . . . Heat Flow Errors 9 | . . . . . . . . . . . . 1 . 2 . . 2 . . 3 . . . . . . . . . 1 . . . . . . . Energy Discharges 16 | . . . . . . . . . 1 . . 2 . 2 . . 2 . . 1 2 1 . . . . . . . 1 . . . 4 . . . Parts Rejected 1 | . . . . . . . . . . . . . . 1 . . . . . . . . . . . . . . . . . . . . . . . Data Loss (minor) 16 | . . . . . . . 1 . 1 . 1 . . . . . 2 . . 2 3 . . . . . . . . 1 1 . . 4 . . . Misfires 3 | . . . . . . . . . . . . 1 2 . . . . . . . . . . . . . . . . . . . . . . . . Targeting Errors 6 | . . . . . . . . . 1 . . . . . . . . . . 1 . . . . . . . . . 2 . . . 2 . . . Weapon Failures 4 | . . . . . . . 1 . 1 . . 1 1 . . . . . . . . . . . . . . . . . . . . . . . . Overload Shots . | . . . . . . . . . . . . . . . . . . . . . . . . . . . . . . . . . . . . . . Overflow Damage 4406 | . . . 289 . . 45 . . 3 . . . 2 . 29 . 212 . 27 17 47 . 1 53 136 155 . . . 147 . 388 327 226 91 1156 1055 Projectiles 3 | . . . . . . . . . 3 . . . . . . . . . . . . . . . . . . . . . . . . . . . . Explosions 341 | . . . 10 . . 45 . . . . . . 2 . . . 13 . . 17 . . 1 . . . . . . 60 . 47 . . . 18 128 Melee 4062 | . . . 279 . . . . . . . . . . . 29 . 199 . 27 . 47 . . 53 136 155 . . . 87 . 341 327 226 91 1138 927 Knockbacks 9 | . . . 4 . . . . . 2 1 . 2 . . . . . . . . . . . . . . . . . . . . . . . . . Impact 4 | . . . 4 . . . . . . . . . . . . . . . . . . . . . . . . . . . . . . . . . . Kinetic 5 | . . . . . . . . . 2 1 . 2 . . . . . . . . . . . . . . . . . . . . . . . . . Secondary . | . . . . . . . . . . . . . . . . . . . . . . . . . . . . . . . . . . . . . . Self-Inflicted Damage 225 | . . . . 10 39 . . 5 . . . . . . . . . . . . . . 76 . . . . . . . . 95 . . . . . Shots 4 | . . . . . 1 . . 1 . . . . . . . . . . . . . . 1 . . . . . . . . 1 . . . . . Rammed 1 | . . . . 1 . . . . . . . . . . . . . . . . . . . . . . . . . . . . . . . . . Targets Rammed 2 | . . . 1 1 . . . . . . . . . . . . . . . . . . . . . . . . . . . . . . . . . Kicked 1 | . . . 1 . . . . . . . . . . . . . . . . . . . . . . . . . . . . . . . . . . Crushed . | . . . . . . . . . . . . . . . . . . . . . . . . . . . . . . . . . . . . . . Highest Temperature 392 | . 43 . 2 . 66 20 28 236 206 60 . 131 16 113 23 . 343 . . 233 . . 12 234 127 18 68 100 11 258 1 77 392 . . . . Average Temperature 69 | . 20 . 2 . 25 6 14 91 56 27 . 27 8 60 10 . 99 . . 83 . . 7 86 57 13 20 33 5 56 1 17 95 . . . . Received Heat Transfer 1630 | . 96 . 30 . 216 105 . 60 264 . . . 39 . 118 . 45 . . 63 . 18 36 96 . . . 9 12 18 . 18 12 84 28 8 255 Effects 7 | . . . . . . . . . . . . . . . . . . . . . . . . 5 . . . . . . . . 2 . . . . Energy Bleed 1 | . . . . . . . . . . . . . . . . . . . . . . . . 1 . . . . . . . . . . . . . Interference 6 | . . . . . . . . . . . . . . . . . . . . . . . . 4 . . . . . . . . 2 . . . . Siege Activations . | . . . . . . . . . . . . . . . . . . . . . . . . . . . . . . . . . . . . . . Robots Corrupted . | . . . . . . . . . . . . . . . . . . . . . . . . . . . . . . . . . . . . . . Combat Hostiles . | . . . . . . . . . . . . . . . . . . . . . . . . . . . . . . . . . . . . . . Parts Fried 11 | . . . 5 . 2 . . . . . . . . . . . . . . . . . . . . . . . . . . . . . . . 4 Impact Corruptions 21 | . . . 20 1 . . . . . . . . . . . . . . . . . . . . . . . . . . . . . . . . . Robots Melted . | . . . . . . . . . . . . . . . . . . . . . . . . . . . . . . . . . . . . . . Combat Hostiles . | . . . . . . . . . . . . . . . . . . . . . . . . . . . . . . . . . . . . . . Parts Melted 6 | . . . 1 . . 1 . 1 1 . . . . . . . . . . . . . . . . . . . . . . . 1 . . 1 . Heat Transferred 2500 | . 285 . . . 509 657 222 592 185 . . . . . . . . . . . . . 50 . . . . . . . . . . . . . . Parts Sabotaged . | . . . . . . . . . . . . . . . . . . . . . . . . . . . . . . . . . . . . . . Parts Stolen . | . . . . . . . . . . . . . . . . . . . . . . . . . . . . . . . . . . . . . . Parts Stripped . | . . . . . . . . . . . . . . . . . . . . . . . . . . . . . . . . . . . . . . Power Chain Reactions 2 | . . . . . 1 . . . . . . . . . . . . . . . . . 1 . . . . . . . . . . . . . . Missiles Intercepted . | . . . . . . . . . . . . . . . . . . . . . . . . . . . . . . . . . . . . . . Alert | -11 -10 -10 -10 -9 -8 -7 -7 -7 -7 -6 -6 -6 -6 -6 -6 -5 -5 -5 -5 -5 -5 -5 -5 -4 -4 -4 -4 -3 -3 -3 -3 -2 -2 -2 -1 -1 -1 ------- Run | Scr Mat Min Exi Min Mat Fac Was Fac Sto Fac Was Fac Low Low Zio Pro Fac Was Fac Ext Cet Arc Hub Fac Upp Upp War Pro Res Arm Lab Res Qua Sec Acc Com Ac0 Peak Influence 1982 | . 116 120 . . 429 597 165 250 358 203 118 879 . . . . 253 36 570 611 471 250 613 575 . . . . 469 860 . 138 160 617 645 1982 . Average Influence 279 | . 65 109 . . 228 388 160 124 215 168 75 433 . . . . 122 36 237 347 173 219 246 437 . . . . 138 529 . 41 33 300 450 955 . Maximum Alert Level 5 | . . . . . 2 2 . 1 1 1 . 3 . . . . 1 . 2 2 2 1 2 2 . . . . 2 3 . . . 2 2 5 . Low Security (%) 45 | 100 100 100 . 100 31 10 100 84 35 80 100 21 . . . . 73 100 46 3 64 29 32 . . . . . 85 16 . 100 100 35 4 4 . Level 1 16 | . . . . . 65 16 . 15 64 19 . 42 . . . . 26 . 32 71 28 70 63 31 . . . . . 9 . . . 27 35 5 . Level 2 23 | . . . . . 3 73 . . . . . 11 . . . . . . 21 25 6 . 3 68 . . . . 14 52 . . . 36 60 1 . Level 3 8 | . . . . . . . . . . . . 24 . . . . . . . . . . . . . . . . . 22 . . . . . 47 . Level 4 . | . . . . . . . . . . . . . . . . . . . . . . . . . . . . . . . . . . . . 6 . Level 5 3 | . . . . . . . . . . . . . . . . . . . . . . . . . . . . . . . . . . . . 26 . High Security 1 | . . . . . . . . . . . . . . . . . . . . . . . . . . . . . . . . . . . . 9 . Max Security . | . . . . . . . . . . . . . . . . . . . . . . . . . . . . . . . . . . . . . . Squads Dispatched 57 | . . . . . 1 2 . 2 2 2 . 2 . . . . 6 . 3 2 . . 4 4 . . . . 4 8 . 3 4 4 . 4 . Investigation 20 | . . . . . . 2 . . 1 . . . . . . . 1 . 1 1 . . 3 . . . . . 1 3 . 2 4 1 . . . Extermination 10 | . . . . . . . . 1 . 1 . 1 . . . . 1 . . . . . . 1 . . . . . 3 . . . 1 . 1 . Reinforcement 21 | . . . . . 1 . . 1 1 1 . 1 . . . . 1 . 2 1 . . 1 3 . . . . 3 1 . 1 . 2 . 1 . Assault 3 | . . . . . . . . . . . . . . . . . . . . . . . . . . . . . . 1 . . . . . 2 . Garrison 3 | . . . . . . . . . . . . . . . . . 3 . . . . . . . . . . . . . . . . . . . . Intercept . | . . . . . . . . . . . . . . . . . . . . . . . . . . . . . . . . . . . . . . Construction Impeded 2 | . . . . . . . . . . . . 1 . . . . . . . 1 . . . . . . . . . . . . . . . . . Haulers Reinforced 9 | . . . . . . . . 1 1 1 . . . . . . . . 2 . . . . 1 . . . . 2 . . 1 . . . . . Stealth | -11 -10 -10 -10 -9 -8 -7 -7 -7 -7 -6 -6 -6 -6 -6 -6 -5 -5 -5 -5 -5 -5 -5 -5 -4 -4 -4 -4 -3 -3 -3 -3 -2 -2 -2 -1 -1 -1 --------- Run | Scr Mat Min Exi Min Mat Fac Was Fac Sto Fac Was Fac Low Low Zio Pro Fac Was Fac Ext Cet Arc Hub Fac Upp Upp War Pro Res Arm Lab Res Qua Sec Acc Com Ac0 Distress Signals 61 | . . . . . 1 1 . . 3 . . 1 . . . . 5 . 1 3 2 . 2 . . . . . . 5 . 10 . 7 1 19 . Communications Jammed . | . . . . . . . . . . . . . . . . . . . . . . . . . . . . . . . . . . . . . . Distress Signals . | . . . . . . . . . . . . . . . . . . . . . . . . . . . . . . . . . . . . . . Times Spotted 594 | . 7 8 62 . 25 17 2 5 17 3 8 10 10 4 7 . 29 . 4 19 12 4 21 27 3 . 4 10 12 48 . 17 17 66 26 37 53 Peak Tracking Total 26 | . 3 3 11 . 5 5 3 2 7 2 6 4 3 2 4 . 9 . 2 5 5 3 13 7 7 . 4 7 5 11 . 7 8 13 15 5 26 Tactical Retreats 91 | . 1 2 15 . 3 3 . . 3 . 2 1 1 . 1 . 4 . . 1 . . 1 6 . . . 2 2 6 . 3 2 14 9 2 7 Traps | -11 -10 -10 -10 -9 -8 -7 -7 -7 -7 -6 -6 -6 -6 -6 -6 -5 -5 -5 -5 -5 -5 -5 -5 -4 -4 -4 -4 -3 -3 -3 -3 -2 -2 -2 -1 -1 -1 ------- Run | Scr Mat Min Exi Min Mat Fac Was Fac Sto Fac Was Fac Low Low Zio Pro Fac Was Fac Ext Cet Arc Hub Fac Upp Upp War Pro Res Arm Lab Res Qua Sec Acc Com Ac0 Traps Triggered 27 | . . . . . 1 3 . 1 1 3 . 2 . . . . 1 . . . . . 3 . . . . . . 1 . . 1 4 6 . . Indirectly 3 | . . . . . . . . . . . . . . . . . . . . . . . 3 . . . . . . . . . . . . . . Trap Hack Attempts . | . . . . . . . . . . . . . . . . . . . . . . . . . . . . . . . . . . . . . . Triggered . | . . . . . . . . . . . . . . . . . . . . . . . . . . . . . . . . . . . . . . Disarmed . | . . . . . . . . . . . . . . . . . . . . . . . . . . . . . . . . . . . . . . Reprogrammed 11 | . . . . . . . . . . . . . . . . . . . . . . . . . . . . . 5 . . . . 6 . . . Reused 11 | . . . . . . . . . . . . . . . . . . . . . . . . . . . . . 5 . . . . 6 . . . Traps Extracted . | . . . . . . . . . . . . . . . . . . . . . . . . . . . . . . . . . . . . . . Installed . | . . . . . . . . . . . . . . . . . . . . . . . . . . . . . . . . . . . . . . Triggered 16 | . . . . . . . . . . . . . 1 . . . . . . . . . . . . . 3 1 5 . . . . 6 . . . Machines | -11 -10 -10 -10 -9 -8 -7 -7 -7 -7 -6 -6 -6 -6 -6 -6 -5 -5 -5 -5 -5 -5 -5 -5 -4 -4 -4 -4 -3 -3 -3 -3 -2 -2 -2 -1 -1 -1 ---------- Run | Scr Mat Min Exi Min Mat Fac Was Fac Sto Fac Was Fac Low Low Zio Pro Fac Was Fac Ext Cet Arc Hub Fac Upp Upp War Pro Res Arm Lab Res Qua Sec Acc Com Ac0 Machines Disabled 75 | . . . 6 . . 2 . 1 3 . . 5 . . . . . . 1 . 1 1 6 2 1 . . . . 6 1 3 11 6 . 10 9 Max in Single Turn 6 | . . . 2 . . 2 . 1 1 . . 2 . . . . . . 1 . 1 . 6 1 1 . . . . 1 1 1 1 1 . 2 1 Garrison Access 11 | . . . . . . . . . . 1 . 1 . . . . 1 . . . . . . 1 . . . . 1 . . 2 1 . 3 . . Phase Generator 1 | . . . . . . . . . . . . . . . . . . . . . . . . . . . . . . . . . . . . 1 . Network Hub 1 | . . . . . . . . . . . . . . . . . . . . . . . 1 . . . . . . . . . . . . . . Machines Sabotaged . | . . . . . . . . . . . . . . . . . . . . . . . . . . . . . . . . . . . . . . Garrisons Compromised . | . . . . . . . . . . . . . . . . . . . . . . . . . . . . . . . . . . . . . . Overloaded Fab Kills . | . . . . . . . . . . . . . . . . . . . . . . . . . . . . . . . . . . . . . . Fab Network Shutdowns 2 | . . . . . . . . . . . . 1 . . . . . . . . . . . . . . . . 1 . . . . . . . . Hacking | -11 -10 -10 -10 -9 -8 -7 -7 -7 -7 -6 -6 -6 -6 -6 -6 -5 -5 -5 -5 -5 -5 -5 -5 -4 -4 -4 -4 -3 -3 -3 -3 -2 -2 -2 -1 -1 -1 --------- Run | Scr Mat Min Exi Min Mat Fac Was Fac Sto Fac Was Fac Low Low Zio Pro Fac Was Fac Ext Cet Arc Hub Fac Upp Upp War Pro Res Arm Lab Res Qua Sec Acc Com Ac0 Machines Accessed 144 | . 4 . 2 . 2 7 . 2 2 5 . 6 . 1 1 . 10 . 4 15 3 . 1 10 . . 2 . 8 12 1 8 6 14 12 6 . Terminals 100 | . 4 . . . 1 6 . 1 2 3 . 3 . . . . 6 . 3 15 3 . . 6 . . . . 6 9 . 3 5 11 7 6 . Fabricators 17 | . . . . . . 1 . 1 . 1 . 1 . . . . 3 . . . . . . 3 . . . . 1 3 . 1 . . 2 . . Repair Stations 2 | . . . . . . . . . . . . . . . . . . . 1 . . . . . . . . . . . . . . 1 . . . Recycling Units . | . . . . . . . . . . . . . . . . . . . . . . . . . . . . . . . . . . . . . . Scanalyzers 6 | . . . . . 1 . . . . . . 1 . . . . . . . . . . . . . . . . . . . 2 . 2 . . . Garrison Access 12 | . . . . . . . . . . 1 . 1 . . . . 1 . . . . . 1 1 . . . . 1 . . 2 1 . 3 . . Total Hacks 436 | . 9 . 2 . 6 24 . 6 7 14 . 16 . 1 3 . 33 . 14 34 9 . 2 31 . . 2 . 35 57 1 23 10 42 43 12 . Successful 266 | . 3 . 2 . 4 13 . 2 3 5 . 11 . 1 3 . 16 . 7 25 6 . . 17 . . 2 . 24 34 1 14 9 29 28 7 . Failed 169 | . 6 . . . 2 11 . 4 4 9 . 5 . . . . 17 . 6 9 3 . 2 14 . . . . 11 23 . 9 1 13 15 5 . Catastrophic 20 | . 2 . . . 1 2 . . 3 . . 2 . . . . 2 . . . . . . 1 . . . . 1 2 . . . 1 3 . . Database Lockouts 1 | . . . . . . . . . . . . . . . . . . . 1 . . . . . . . . . . . . . . . . . . Manual 195 | . 4 . 1 . 3 9 . 1 5 2 . 6 . . . . 14 . 8 15 9 . . 17 . . . . 17 33 . 3 6 18 17 7 . Terminals 310 | . 9 . . . 3 19 . 4 7 9 . 3 . . . . 21 . 12 34 9 . . 20 . . . . 25 39 . 10 9 35 30 12 . Fabricators 76 | . . . . . . 5 . 2 . 3 . 8 . . . . 11 . . . . . . 10 . . . . 7 18 . 4 . . 8 . . Repair Stations 3 | . . . . . . . . . . . . . . . . . . . 2 . . . . . . . . . . . . . . 1 . . . Recycling Units . | . . . . . . . . . . . . . . . . . . . . . . . . . . . . . . . . . . . . . . Scanalyzers 19 | . . . . . 3 . . . . . . 4 . . . . . . . . . . . . . . . . . . . 6 . 6 . . . Garrison Access 19 | . . . . . . . . . . 2 . 1 . . . . 1 . . . . . 2 1 . . . . 3 . . 3 1 . 5 . . Terminal Hacks 146 | . 2 . 2 . . 9 . 1 . 1 . 1 . 1 3 . 2 . 4 22 6 . . 7 . . 2 . 15 17 1 6 5 15 18 6 . Record 6 | . 1 . 1 . . . . . . . . . . 1 . . . . . . 1 . . . . . . . . 1 1 . . . . . . Part Schematic 12 | . . . . . . 2 . . . . . . . . 3 . . . 2 1 . . . . . . . . 1 2 . . . . 1 . . Robot Analysis 3 | . . . . . . 1 . . . . . . . . . . . . . . . . . . . . . . . . . . . . 2 . . Prototype ID Bank 5 | . . . . . . . . . . . . . . . . . . . . 1 . . . 2 . . . . . 1 . . . 1 . . . Open Door 19 | . . . . . . . . . . . . . . . . . . . 1 9 . . . . . . 2 . . . . . 1 2 3 1 . Branch Access Points 8 | . . . . . . 1 . . . . . 1 . . . . . . 1 . . . . 2 . . . . 1 . . 1 . . 1 . . Machine Index 5 | . . . . . . . . 1 . . . . . . . . 1 . . . . . . . . . . . . 1 . 1 . . 1 . . Terminal Index 5 | . . . . . . . . . . . . . . . . . . . . . . . . . . . . . 1 1 . . 1 1 . 1 . Fabricator Index 8 | . . . . . . 1 . . . . . . . . . . . . . 1 . . . 1 . . . . 1 1 . 1 . 1 1 . . Alert Level 8 | . . . . . . . . . . . . . . . . . . . . 3 1 . . . . . . . . . . . 2 1 1 . . Unreport Threat 24 | . . . . . . . . . . . . . . . . . . . . 3 4 . . . . . . . 5 . . 2 1 4 5 . . Locate Traps 11 | . 1 . . . . 2 . . . 1 . . . . . . . . . 2 . . . . . . . . 1 2 . . . 2 . . . Reprogram Traps 3 | . . . . . . . . . . . . . . . . . . . . . . . . . . . . . 2 . . . . 1 . . . Recall Investigation 2 | . . . . . . . . . . . . . . . . . . . . . . . . . . . . . . 2 . . . . . . . Recall Extermination 5 | . . . . . . . . . . . . . . . . . . . . . . . . . . . . . . 3 . . . . . 2 . Hauler Manifests 2 | . . . . . . . . . . . . . . . . . . . . . . . . . . . . . . 1 . . . . 1 . . Registered Prototypes 4 | . . . . . . 1 . . . . . . . . . . . . . . . . . . . . . . 1 . . . . 1 1 . . Zone Layout 13 | . . . . . . 1 . . . . . . . . . . 1 . . 2 . . . 2 . . . . 2 2 . 1 . 1 1 . . EX-Prototype ID Bank 1 | . . . 1 . . . . . . . . . . . . . . . . . . . . . . . . . . . . . . . . . . Disengage Seal 2 | . . . . . . . . . . . . . . . . . . . . . . . . . . . . . . . . . . . . 2 . Fabricator Hacks 43 | . . . . . . 3 . . . 2 . 4 . . . . 7 . . . . . . 6 . . . . 4 11 . 1 . . 5 . . Load Schematic 18 | . . . . . . 2 . . . 1 . 1 . . . . 3 . . . . . . 3 . . . . 1 4 . 1 . . 2 . . Build 25 | . . . . . . 1 . . . 1 . 3 . . . . 4 . . . . . . 3 . . . . 3 7 . . . . 3 . . Repair Station Hacks 1 | . . . . . . . . . . . . . . . . . . . 1 . . . . . . . . . . . . . . . . . . Scan Component 1 | . . . . . . . . . . . . . . . . . . . 1 . . . . . . . . . . . . . . . . . . Recycling Unit Hacks . | . . . . . . . . . . . . . . . . . . . . . . . . . . . . . . . . . . . . . . Scanalyzer 13 | . . . . . 3 . . . . . . 3 . . . . . . . . . . . . . . . . . . . 3 . 4 . . . Insert Component 9 | . . . . . 1 . . . . . . 1 . . . . . . . . . . . . . . . . . . . 3 . 4 . . . Analyze 4 | . . . . . 2 . . . . . . 2 . . . . . . . . . . . . . . . . . . . . . . . . . Garrison Access Hacks 11 | . . . . . . . . . . 1 . 1 . . . . 1 . . . . . . 1 . . . . 1 . . 2 1 . 3 . . Seal Access 11 | . . . . . . . . . . 1 . 1 . . . . 1 . . . . . . 1 . . . . 1 . . 2 1 . 3 . . Unauthorized Hacks 52 | . 1 . . . 1 1 . 1 3 1 . 2 . . . . 6 . 2 3 . . . 3 . . . . 4 6 . 2 3 10 2 1 . Terminals 44 | . 1 . . . 1 1 . 1 3 1 . . . . . . 5 . 2 3 . . . 2 . . . . 3 3 . 2 3 10 2 1 . Track 8 | . . . . . . . . . 1 . . . . . . . . . . . . . . . . . . . . . . . . 7 . . . Assimilate 15 | . 1 . . . . . . . . . . . . . . . 2 . 1 2 . . . 1 . . . . 2 2 . 1 . 2 . 1 . Botnet 15 | . . . . . 1 1 . 1 1 1 . . . . . . 2 . 1 1 . . . . . . . . 1 1 . 1 . 1 2 . . Disrupt 3 | . . . . . . . . . 1 . . . . . . . 1 . . . . . . 1 . . . . . . . . . . . . . Search 3 | . . . . . . . . . . . . . . . . . . . . . . . . . . . . . . . . . 3 . . . . Fabricators 8 | . . . . . . . . . . . . 2 . . . . 1 . . . . . . 1 . . . . 1 3 . . . . . . . Prioritize 6 | . . . . . . . . . . . . 1 . . . . 1 . . . . . . 1 . . . . 1 2 . . . . . . . Siphon 2 | . . . . . . . . . . . . 1 . . . . . . . . . . . . . . . . . 1 . . . . . . . Repair Stations . | . . . . . . . . . . . . . . . . . . . . . . . . . . . . . . . . . . . . . . Recycling Units . | . . . . . . . . . . . . . . . . . . . . . . . . . . . . . . . . . . . . . . Scanalyzers . | . . . . . . . . . . . . . . . . . . . . . . . . . . . . . . . . . . . . . . Garrison Access . | . . . . . . . . . . . . . . . . . . . . . . . . . . . . . . . . . . . . . . Data Cores Recovered 4 | . . . . . . . . . . . . . . . . . . . . . . . . 1 . . . . . 2 . . 1 . . . . Used 1 | . . . . . . . . . . . . . . . . . . . . . . . . 1 . . . . . . . . . . . . . Hacking Detections 102 | . 4 . . . 2 6 . 2 2 5 . 2 . . . . 9 . 4 11 2 . 1 7 . . . . 5 10 . 6 3 11 7 3 . Full Trace Events 14 | . . . . . 1 2 . . 1 . . . . . . . 1 . . 1 . . 1 . . . . . 1 3 . 2 . 1 . . . Feedback Events 3 | . . . . . . . . . . . . . . . . . . . . . . . 1 . . . . . 1 1 . . . . . . . Corruption 2 | . . . . . . . . . . . . . . . . . . . . . . . . . . . . . 1 1 . . . . . . . Hackware Fried 1 | . . . . . . . . . . . . . . . . . . . . . . . 1 . . . . . . . . . . . . . . Feedback Blocked . | . . . . . . . . . . . . . . . . . . . . . . . . . . . . . . . . . . . . . . Robot Schematics Acquired . | . . . . . . . . . . . . . . . . . . . . . . . . . . . . . . . . . . . . . . Robots Built . | . . . . . . . . . . . . . . . . . . . . . . . . . . . . . . . . . . . . . . Matter . | . . . . . . . . . . . . . . . . . . . . . . . . . . . . . . . . . . . . . . Time . | . . . . . . . . . . . . . . . . . . . . . . . . . . . . . . . . . . . . . . Total Robot Build Rating . | . . . . . . . . . . . . . . . . . . . . . . . . . . . . . . . . . . . . . . Part Schematics Acquired 14 | . . . . . 1 2 . . . . . 1 . . 3 . . . 2 1 . . . . . . . . 1 2 . . . . 1 . . Parts Built 22 | . . . . . . 1 . . . 2 . 3 . . . . 3 . . . . . . 3 . . . . 2 6 . . . . 2 . . Matter 6047 | . . . . . . 168 . . . 146 . 630 . . . . 672 . . . . . . 855 . . . . 768 2106 . . . . 702 . . Time 1788 | . . . . . . 84 . . . 36 . 268 . . . . 243 . . . . . . 278 . . . . 153 602 . . . . 124 . . Total Part Build Rating 121 | . . . . . . 4 . . . 6 . 12 . . . . 12 . . . . . . 15 . . . . 16 42 . . . . 14 . . Parts Repaired . | . . . . . . . . . . . . . . . . . . . . . . . . . . . . . . . . . . . . . . Time . | . . . . . . . . . . . . . . . . . . . . . . . . . . . . . . . . . . . . . . Parts Recycled . | . . . . . . . . . . . . . . . . . . . . . . . . . . . . . . . . . . . . . . Recycled Matter . | . . . . . . . . . . . . . . . . . . . . . . . . . . . . . . . . . . . . . . Retrieved Matter . | . . . . . . . . . . . . . . . . . . . . . . . . . . . . . . . . . . . . . . Retrieved Components . | . . . . . . . . . . . . . . . . . . . . . . . . . . . . . . . . . . . . . . Parts Scanalyzed 2 | . . . . . 1 . . . . . . 1 . . . . . . . . . . . . . . . . . . . . . . . . . Part Schematics Acquired 2 | . . . . . 1 . . . . . . 1 . . . . . . . . . . . . . . . . . . . . . . . . . Parts Damaged . | . . . . . . . . . . . . . . . . . . . . . . . . . . . . . . . . . . . . . . Bothacking | -11 -10 -10 -10 -9 -8 -7 -7 -7 -7 -6 -6 -6 -6 -6 -6 -5 -5 -5 -5 -5 -5 -5 -5 -4 -4 -4 -4 -3 -3 -3 -3 -2 -2 -2 -1 -1 -1 ------------ Run | Scr Mat Min Exi Min Mat Fac Was Fac Sto Fac Was Fac Low Low Zio Pro Fac Was Fac Ext Cet Arc Hub Fac Upp Upp War Pro Res Arm Lab Res Qua Sec Acc Com Ac0 Used RIF Installer . | . . . . . . . . . . . . . . . . . . . . . . . . . . . . . . . . . . . . . . Robots Hacked . | . . . . . . . . . . . . . . . . . . . . . . . . . . . . . . . . . . . . . . Non-combat . | . . . . . . . . . . . . . . . . . . . . . . . . . . . . . . . . . . . . . . Combat . | . . . . . . . . . . . . . . . . . . . . . . . . . . . . . . . . . . . . . . Robot Hacks Applied . | . . . . . . . . . . . . . . . . . . . . . . . . . . . . . . . . . . . . . . Relay Couplers Released 3 | . . . . . . . . . . . . . . . . . . . . . . . . . . . . . . . . 3 . . . . . Programmers 3 | . . . . . . . . . . . . . . . . . . . . . . . . . . . . . . . . 3 . . . . . Robots Rewired 12 | . . . . . . . . . . . . . . . . . . . . 9 . . . . . . . . . 3 . . . . . . . Allies Hacked 3 | . . . . . . . . . . . . . . . . . . . . . . . . . . . . . . 3 . . . . . . . Hacks Repelled . | . . . . . . . . . . . . . . . . . . . . . . . . . . . . . . . . . . . . . . Allies | -11 -10 -10 -10 -9 -8 -7 -7 -7 -7 -6 -6 -6 -6 -6 -6 -5 -5 -5 -5 -5 -5 -5 -5 -4 -4 -4 -4 -3 -3 -3 -3 -2 -2 -2 -1 -1 -1 -------- Run | Scr Mat Min Exi Min Mat Fac Was Fac Sto Fac Was Fac Low Low Zio Pro Fac Was Fac Ext Cet Arc Hub Fac Upp Upp War Pro Res Arm Lab Res Qua Sec Acc Com Ac0 Total Allies 157 | . 1 . . . . . . . . . 19 . . . 4 . 2 20 1 22 5 . . 1 . . . . 2 14 . 1 . 2 . 63 . Largest Group 45 | . 1 . . . . . . . . . 19 13 8 5 4 . 2 20 21 32 20 15 11 1 . . . . 2 10 . 1 . 1 . 45 . Highest-Rated Group 2289 | . 10 . . . . . . . . . 714 543 303 179 107 . 36 758 758 1129 1048 791 605 10 . . . . 88 481 . 44 . 26 . 2289 . Highest-Rated Ally 156 | . 10 . . . . . . . . . 50 50 46 44 31 . 26 50 50 156 156 94 94 10 . . . . 44 60 . 44 . 26 . 94 . Total Orders . | . . . . . . . . . . . . . . . . . . . . . . . . . . . . . . . . . . . . . . Ally Attacks 1211 | . . . 27 . . . . . . . 112 36 29 34 . . . . 58 107 79 29 31 . . . . . . 69 . . . . . 593 7 Total Damage 38090 | . . . 1282 . . . . . . . 6411 2236 737 634 . . . . 1247 4456 2275 1018 1143 . . . . . . 1772 . . . . . 14577 302 Kills 171 | . . . 5 . . . . . . . 12 13 5 3 . . . . 9 29 15 4 8 . . . . . . 7 . . . . . 61 . Allies Corrupted 6 | . . . . . . . . . . . . . . . . . . . . . . . . . . . . . . 5 . . . . . 1 . Allies Melted . | . . . . . . . . . . . . . . . . . . . . . . . . . . . . . . . . . . . . . . Turrets Deployed 4 | . . . 3 . . . . . . . . . . . . . . . . . . . . . . . . . . . . . . . . . 1 Intel | -11 -10 -10 -10 -9 -8 -7 -7 -7 -7 -6 -6 -6 -6 -6 -6 -5 -5 -5 -5 -5 -5 -5 -5 -4 -4 -4 -4 -3 -3 -3 -3 -2 -2 -2 -1 -1 -1 ------- Run | Scr Mat Min Exi Min Mat Fac Was Fac Sto Fac Was Fac Low Low Zio Pro Fac Was Fac Ext Cet Arc Hub Fac Upp Upp War Pro Res Arm Lab Res Qua Sec Acc Com Ac0 Robot Analysis Total 3 | . . . . . . 1 . . . . . . . . . . . . . . . . . . . . . . . . . . . . 2 . . Derelict Logs Recovered 9 | . . 1 . 2 . . . . . . . . 2 2 2 . . . . . . . . . . . . . . . . . . . . . . Drone Launches . | . . . . . . . . . . . . . . . . . . . . . . . . . . . . . . . . . . . . . . Drone Recoveries . | . . . . . . . . . . . . . . . . . . . . . . . . . . . . . . . . . . . . . . Exploration | -11 -10 -10 -10 -9 -8 -7 -7 -7 -7 -6 -6 -6 -6 -6 -6 -5 -5 -5 -5 -5 -5 -5 -5 -4 -4 -4 -4 -3 -3 -3 -3 -2 -2 -2 -1 -1 -1 ------------- Run | Scr Mat Min Exi Min Mat Fac Was Fac Sto Fac Was Fac Low Low Zio Pro Fac Was Fac Ext Cet Arc Hub Fac Upp Upp War Pro Res Arm Lab Res Qua Sec Acc Com Ac0 Turns Passed 18074 | 27 192 306 1358 115 467 634 44 545 381 454 195 623 306 279 558 89 603 96 231 772 289 71 86 776 66 498 395 112 370 881 79 606 1649 653 442 936 1890 Spaces Moved 30633 | 43 216 659 1280 113 477 1270 60 433 532 646 427 942 539 824 1142 332 1323 240 560 857 264 61 291 1352 198 454 895 437 923 1390 233 1338 2038 1586 1250 1781 3227 Core 314 | 43 216 55 . . . . . . . . . . . . . . . . . . . . . . . . . . . . . . . . . . . Treads . | . . . . . . . . . . . . . . . . . . . . . . . . . . . . . . . . . . . . . . Legs 1356 | . . . 1118 113 125 . . . . . . . . . . . . . . . . . . . . . . . . . . . . . . . . Wheels . | . . . . . . . . . . . . . . . . . . . . . . . . . . . . . . . . . . . . . . Hover 2987 | . . . . . 352 1270 60 433 532 340 . . . . . . . . . . . . . . . . . . . . . . . . . . . Flight 25976 | . . 604 162 . . . . . . 306 427 942 539 824 1142 332 1323 240 560 857 264 61 291 1352 198 454 895 437 923 1390 233 1338 2038 1586 1250 1781 3227 Fastest Speed 9 | 50 50 37 37 90 42 38 38 38 38 26 26 26 26 26 26 26 23 23 23 23 23 23 23 20 20 20 16 16 16 14 19 17 16 12 13 12 9 Average Speed 24 | 50 50 38 83 90 54 38 38 38 38 33 26 26 26 26 26 26 23 23 23 23 23 23 23 21 20 20 17 16 16 17 19 18 16 15 13 12 11 Slowest Speed 230 | 50 50 50 90 90 130 40 38 42 38 230 26 26 26 26 26 26 23 23 23 92 23 23 23 23 20 20 91 16 17 19 20 20 17 16 13 13 12 Overloaded Moves 90 | . . . . . 22 . . . . . . . . . . . . . . . . . . . . . . . . . . . . 28 . . 40 Propulsion Burnouts . | . . . . . . . . . . . . . . . . . . . . . . . . . . . . . . . . . . . . . . Robots Hopped 132 | . . 10 . . . . . . . 1 2 6 7 . 1 . 14 . 6 3 . . 7 9 . . . . 9 5 . 14 . 6 2 5 25 Cave-ins Triggered . | . . . . . . . . . . . . . . . . . . . . . . . . . . . . . . . . . . . . . . Teleports 2 | . . . . . . . . . . . . . . . . . . . . . . . . . . . . . . . . . . . . 1 1 Exploration Rate (%) 55 | 3 48 80 89 33 44 30 69 8 62 18 95 24 64 41 85 55 40 96 18 86 78 65 38 32 34 64 94 65 25 62 93 30 87 71 29 57 87 Regions Visited 37 Branch Regions 22 Pre-discovered Areas 5 | . . 1 1 . . . . . . . . . . . 3 . . . . . . . . . . . . . . . . . . . . . . Known Exits Taken 23 | . . . . . . . . 1 . . . 1 1 1 1 1 . . 1 1 1 1 1 1 1 1 1 1 1 1 1 1 1 1 1 . . Unknown Exits Taken 8 | 1 1 1 1 1 1 . . . 1 . . . . . . . . . . . . . . . . . . . . . . . . . . 1 . Scrap Searched 21 | . . 1 . 1 . . . . . . . . 2 1 4 2 . . . . . . . . 3 5 . 2 . . . . . . . . . Spaces Dug 226 | . . . . . . 6 . 15 5 4 . 1 . . . . 9 . 1 10 1 . 1 12 . 10 2 . 4 38 . 5 9 30 16 12 35 Terrain Destroyed 903 | . . . 15 . 4 64 . 15 9 5 . 32 85 . . . 34 . 1 40 1 . 164 18 . 15 2 . 31 86 . 27 9 30 16 133 67 Melee 126 | . . . . . . . . . . . . . . . . . 9 . 1 10 1 . 1 6 . 3 2 . 4 8 . 5 9 30 16 12 9 Projectile 44 | . . . . . . . . . 9 5 . 5 . . . . . . . . . . 1 12 . 12 . . . . . . . . . . . AOE 733 | . . . 15 . 4 64 . 15 . . . 27 85 . . . 25 . . 30 . . 162 . . . . . 27 78 . 22 . . . 121 58 Actions | -11 -10 -10 -10 -9 -8 -7 -7 -7 -7 -6 -6 -6 -6 -6 -6 -5 -5 -5 -5 -5 -5 -5 -5 -4 -4 -4 -4 -3 -3 -3 -3 -2 -2 -2 -1 -1 -1 --------- Run | Scr Mat Min Exi Min Mat Fac Was Fac Sto Fac Was Fac Low Low Zio Pro Fac Was Fac Ext Cet Arc Hub Fac Upp Upp War Pro Res Arm Lab Res Qua Sec Acc Com Ac0 Total 39959 | 47 280 682 1479 125 592 1392 67 777 641 866 508 1296 683 887 1384 333 1577 276 637 1406 486 115 298 1781 222 843 1120 478 1121 1990 263 1645 3322 1885 1478 2423 4554 Wait 7518 | . 42 3 63 7 32 76 . 313 50 141 84 310 140 60 207 . 209 22 68 378 197 52 10 369 21 373 205 42 191 539 . 249 1216 192 165 483 1009 Move 30362 | 42 215 638 1279 112 476 1270 59 432 531 644 422 930 526 823 1139 331 1298 239 548 850 263 60 278 1333 197 453 894 436 904 1380 232 1314 2037 1575 1245 1770 3187 Hop 104 | . . 10 . . . . . . . 1 2 5 5 . 1 . 11 . 5 3 . . 5 9 . . . . 9 4 . 9 . 4 2 5 14 Pick Up 81 | 3 3 4 11 3 7 6 . 1 . 3 . 1 . . . . 2 . . . 1 . . 3 1 . . . 2 1 6 3 3 8 2 3 4 Fast Attach 190 | 2 3 4 6 . 9 7 . 4 2 11 . 2 . 3 7 1 7 6 1 1 4 . . 10 . 2 6 . 3 7 4 16 15 11 2 13 21 Attach 40 | . 2 1 4 . 5 1 . . . . . 1 . . . . 1 . . 1 . . . 1 . . . . 1 3 2 2 1 2 2 7 3 Detach 24 | . 1 . 2 . 1 . . . . 1 . 1 . . . . 1 . . . . . . . . . . . 1 3 2 1 1 2 . 4 3 Swap 78 | . . 2 3 2 3 4 . 4 4 1 . 4 3 . . . 6 . . 2 3 . . 5 . . . . 3 . 4 . . 4 3 6 12 Drop 206 | . 3 6 12 . 9 10 . 2 3 16 . 4 . 1 6 1 11 5 1 . 4 . . 9 1 1 8 . 2 6 10 14 18 7 1 17 18 Fire 372 | . 11 14 80 . 50 18 8 21 51 15 . 12 9 . 10 . 2 . . 8 . . 4 30 . 9 1 . 1 6 . 1 . . . 7 4 Melee 753 | . . . 18 . . . . . . . . . . . 14 . 29 4 14 16 14 3 1 12 2 5 6 . 4 29 3 36 31 80 45 108 279 Ram . | . . . . . . . . . . . . . . . . . . . . . . . . . . . . . . . . . . . . . . Kick 2 | . . . 1 1 . . . . . . . . . . . . . . . . . . . . . . . . . . . . . . . . . Crush . | . . . . . . . . . . . . . . . . . . . . . . . . . . . . . . . . . . . . . . Escape Stasis 110 | . . . . . . . . . . 33 . 26 . . . . . . . 36 . . . . . . . . . 4 . . . . 11 . . Rewire 119 | . . . . . . . . . . . . . . . . . . . . 111 . . . . . . . . . 8 . . . . . . . Trap . | . . . . . . . . . . . . . . . . . . . . . . . . . . . . . . . . . . . . . . Miscellaneous . | . . . . . . . . . . . . . . . . . . . . . . . . . . . . . . . . . . . . . . Route ------- -11/Scrapyard -10/Materials (discovered 3 exits: [*Mat x2] / [*Min]) -10/Mines (discovered 3 exits: [*Mat x2] / *Exi) -10/Exiles -9/Mines -8/Materials -7/Factory (discovered 4 exits: *Fac / *Sto / Low x2) -7/Waste -7/Factory -7/Storage -6/Factory -6/Waste -6/Factory (discovered 2 exits: *Low x2) -6/Lower Caves -6/Lower Caves -6/Zion -5/Proximity Caves -5/Factory (discovered 3 exits: *Fac x2 / Upp) -5/Waste -5/Factory (discovered 5 exits: *Fac / Upp x2 / *Ext x2) -5/Extension (discovered 2 exits: *Fac / *Cet) -5/Cetus -5/Archives -5/Hub_04(d) (discovered 2 exits: *Fac x2) -4/Factory (discovered 2 exits: *Upp x2) -4/Upper Caves -4/Upper Caves -4/Warlord -3/Proximity Caves -3/Research (discovered 4 exits: *Res / *Arm / Tes x2) -3/Armory -3/Lab -2/Research (discovered 3 exits: *Acc / *Qua x2) -2/Quarantine (discovered 2 exits: Acc / *Sec) -2/Section 7 -1/Access (discovered 2 exits: [Sur] / *Com) -1/Command (discovered 3 exits: [*Sur x2] / [*Ac0]) -1/Access_0 Near Former Tau Ceti IV History --------- Turn | Location | Event 2 | -11/Scrapyard | Met Revision 17 7 | -11/Scrapyard | Discovered new exit (range 15) 28 | -11/Scrapyard | Entered Materials 193 | -10/Materials | Discovered new exit (range 12) 195 | -10/Materials | Discovered new exit (range 16) 212 | -10/Materials | Discovered new exit (range 15) 220 | -10/Materials | Entered Mines 248 | -10/Mines | Met a Derelict bent on vengeance 322 | -10/Mines | Discovered new exit (range 8) 335 | -10/Mines | Discovered new exit (range 5) 382 | -10/Mines | Deemed a non-threat by the Exiles lab entrance 383 | -10/Mines | Discovered new exit (range 5) 436 | -10/Mines | Learned location of Storage (-7) 526 | -10/Mines | Entered Exiles 536 | -10/Exiles | Met 8R-AWN 542 | -10/Exiles | Met EX-HEX 555 | -10/Exiles | Met EX-DEC 561 | -10/Exiles | Learned location of Zion (-6) 568 | -10/Exiles | Met EX-BIN 573 | -10/Exiles | Aligned with FarCom system 574 | -10/Exiles | Given EX-Vault access code 582 | -10/Exiles | Opened EX-Vault 587 | -10/Exiles | DAS Turret deployed 587 | -10/Exiles | Found Potential Leg 590 | -10/Exiles | Found Potential Leg 610 | -10/Exiles | Found Deploy-a-Sentry 631 | -10/Exiles | Warned to stay clear of 0b10 Research branches 683 | -10/Exiles | DAS Turret deployed 752 | -10/Exiles | Found Deploy-a-Sentry 780 | -10/Exiles | Found Modified TNC 853 | -10/Exiles | DAS Turret deployed 880 | -10/Exiles | Attacked by the Exiles 891 | -10/Exiles | Build established: Mutant 983 | -10/Exiles | Allies destroyed 8R-AWN 1028 | -10/Exiles | Core integrity fell below 50% 1341 | -10/Exiles | Destroyed EX-BIN 1400 | -10/Exiles | Destroyed EX-HEX 1600 | -10/Exiles | Discovered new exit (range 12) 1680 | -10/Exiles | Destroyed EX-DEC 1694 | -10/Exiles | Found Prototype Device 1699 | -10/Exiles | Identified System Purifier 1749 | -10/Exiles | Found Deploy-a-Sentry 1884 | -10/Exiles | Stole three prototypes: Potential Leg, Modified TNC, Deploy-a-Sentry 1884 | -10/Exiles | Entered Mines 1921 | -9/Mines | Learned Materials interactive machine intel 1944 | -9/Mines | Learned Materials garrison access intel 1949 | -9/Mines | Discovered new exit (range 13) 1965 | -9/Mines | Joined a pair of Derelicts in attacking an 0b10 outpost 1999 | -9/Mines | Entered Materials 1999 | -8/Materials | Evolved 4 slots: Propulsion x1, Utility x3 2000 | -8/Materials | Loaded intel: 19 interactive machine locations 2001 | -8/Materials | Loaded intel: 1 garrison access location 2460 | -8/Materials | Discovered new exit (range 15) 2466 | -8/Materials | Entered Factory 2466 | -7/Factory | Evolved 2 slots: Propulsion x1, Utility x1 2499 | -7/Factory | Identified exit to Storage 2499 | -7/Factory | Identified exit to Lower Caves 2765 | -7/Factory | Build established: Hacker-Mutant 2861 | -7/Factory | Discovered new exit (range 5) 2903 | -7/Factory | Found Powered Armor 3034 | -7/Factory | Fabricated Lrn. Sensor Array? 3100 | -7/Factory | Sucked down chute 3100 | -7/Factory | Entered Waste 3108 | -7/Waste | Spotted C-40 Crusher 3108 | -7/Waste | Spotted C-40 Crusher 3112 | -7/Waste | Spotted C-40 Crusher 3115 | -7/Waste | EMP discharged 3117 | -7/Waste | Discovered new exit (range 16) 3117 | -7/Waste | Spotted C-40 Crusher 3144 | -7/Waste | Entered Factory 3455 | -7/Factory | Discovered exit to Storage (range 15) 3689 | -7/Factory | Entered Storage 3903 | -7/Storage | Discovered new exit (range 5) 4070 | -7/Storage | Entered Factory 4070 | -6/Factory | Evolved 2 slots: Power x1, Utility x1 4296 | -6/Factory | Fabricated Adv. Signal Interpreter (x2) 4462 | -6/Factory | Discovered new exit (range 7) 4481 | -6/Factory | Identified exit to Factory 4524 | -6/Factory | Manually triggered Chute Trap 4524 | -6/Factory | Sucked down chute 4524 | -6/Factory | Entered Waste 4532 | -6/Waste | Spotted C-40 Crusher 4536 | -6/Waste | Spotted C-40 Crusher 4538 | -6/Waste | Spotted C-40 Crusher 4539 | -6/Waste | Discovered new exit (range 13) 4539 | -6/Waste | Spotted C-40 Crusher 4539 | -6/Waste | Spotted C-40 Crusher 4550 | -6/Waste | Spotted C-40 Crusher 4601 | -6/Waste | Build established: Hacker-Scout 4643 | -6/Waste | Warlord forces began an assault 4670 | -6/Waste | Allies destroyed C-40 Crusher 4677 | -6/Waste | Allies destroyed C-40 Crusher 4678 | -6/Waste | Allies destroyed C-40 Crusher 4681 | -6/Waste | Allies destroyed C-40 Crusher 4691 | -6/Waste | Allies destroyed C-40 Crusher 4696 | -6/Waste | Allies destroyed C-40 Crusher 4703 | -6/Waste | Identified exit to Factory 4719 | -6/Waste | Entered Factory 4719 | -6/Factory | Accompanied by 13 allies 4980 | -6/Factory | Identified exit to Lower Caves 5004 | -6/Factory | Fabricated Imp. Cesium-ion Thruster (x1) 5071 | -6/Factory | Fabricated Imp. Cesium-ion Thruster (x1) 5114 | -6/Factory | Local fabrication network quarantined 5140 | -6/Factory | Fabricated Imp. Cesium-ion Thruster (x1) 5342 | -6/Factory | Entered Lower Caves 5342 | -6/Lower Caves | Accompanied by 8 allies 5352 | -6/Lower Caves | Learned 8 Factory zone layouts 5461 | -6/Lower Caves | Learned Factory garrison access intel 5475 | -6/Lower Caves | Attracted the attention of an 0b10 checkpoint 5581 | -6/Lower Caves | Discovered new exit (range 9) 5583 | -6/Lower Caves | Identified exit to Lower Caves 5648 | -6/Lower Caves | Entered another Lower Caves area 5648 | -6/Lower Caves | Accompanied by 5 allies 5661 | -6/Lower Caves | Build established: Hacker-Sprinter 5666 | -6/Lower Caves | Learned Factory emergency access door positions 5712 | -6/Lower Caves | Learned Factory trap positions 5717 | -6/Lower Caves | Spotted 88-2AM(f) 5718 | -6/Lower Caves | Encountered a Master Thief 5734 | -6/Lower Caves | Allies destroyed 88-2AM(f) 5762 | -6/Lower Caves | Discovered new exit (range 13) 5765 | -6/Lower Caves | Identified exit to Zion 5769 | -6/Lower Caves | Spotted YS-PQ8(f) 5770 | -6/Lower Caves | Encountered a Master Thief 5770 | -6/Lower Caves | Spotted TS-ART(f) 5771 | -6/Lower Caves | Encountered a Master Thief 5896 | -6/Lower Caves | Allies destroyed YS-PQ8(f) 5908 | -6/Lower Caves | Spotted BN-3RT(f) 5910 | -6/Lower Caves | Encountered a Master Thief 5927 | -6/Lower Caves | Entered Zion 5937 | -6/Zion | System corruption cleaned by Quarantine Array 5953 | -6/Zion | Discovered new exit (range 15) 5956 | -6/Zion | Identified exit to Proximity Caves 5988 | -6/Zion | Acquired unknown access codes intercepted by a Zionite 5992 | -6/Zion | Learned location of Armory (-3) 5999 | -6/Zion | Given A8's code to call for help 6028 | -6/Zion | Gained Derelict followers 6045 | -6/Zion | Learned 4 Factory zone layouts 6085 | -6/Zion | Learned location of Warlord (-4) 6288 | -6/Zion | Attacked by Zionites 6384 | -6/Zion | Destroyed Imprinter 6386 | -6/Zion | Extracted access codes from Imprinter's data core 6449 | -6/Zion | Spotted YR-FM5(B) 6449 | -6/Zion | Spotted SL-NDC(B) 6485 | -6/Zion | Entered Proximity Caves 6567 | -5/Proximity Caves | Discovered exit to Factory (range 7) 6574 | -5/Proximity Caves | Entered Factory 6574 | -5/Factory | Evolved 2 slots: Propulsion x1, Utility x1 6575 | -5/Factory | Identified exit to Upper Caves 6576 | -5/Factory | Identified exit to Factory 6577 | -5/Factory | Loaded intel: 90 trap records 6579 | -5/Factory | Loaded intel: 4 garrison access locations 6644 | -5/Factory | Spotted B-75 Beast 6650 | -5/Factory | Found Prototype Launcher 6650 | -5/Factory | Identified Rocket Array 6680 | -5/Factory | Build established: Scavenger-Sprinter 6713 | -5/Factory | Fabricated Imp. Cesium-ion Thruster? 6722 | -5/Factory | Fabricated Lrn. Sensor Array (x1) 6777 | -5/Factory | Garrison activated, responded to threat 6946 | -5/Factory | Found Prototype Launcher 6946 | -5/Factory | Identified Mni. Smartbomb Launcher 6996 | -5/Factory | Discovered exit to Factory (range 4) 7061 | -5/Factory | Fabricated Imp. Cesium-ion Thruster (x1) 7177 | -5/Factory | Manually triggered Chute Trap 7177 | -5/Factory | Sucked down chute 7177 | -5/Factory | Entered Waste 7178 | -5/Waste | Joined by Warlord forces that had cleared the area 7181 | -5/Waste | Found Unknown Launcher 7181 | -5/Waste | Identified Gamma Bomb Array 7218 | -5/Waste | Found Prototype Protection 7218 | -5/Waste | Identified Centrium Heavy Armor Plating 7243 | -5/Waste | Discovered new exit (range 11) 7251 | -5/Waste | Identified exit to Factory 7273 | -5/Waste | Entered Factory 7273 | -5/Factory | Accompanied by 20 allies 7306 | -5/Factory | Build established: Machinist-Scout 7394 | -5/Factory | Discovered exit to Factory (range 11) 7448 | -5/Factory | Identified exit to Extension 7494 | -5/Factory | Central database locked down 7504 | -5/Factory | Entered Extension 7504 | -5/Extension | Accompanied by 21 allies 7564 | -5/Extension | Rescued a captive Derelict 7564 | -5/Extension | Rescued a captive Derelict 7570 | -5/Extension | Rescued a captive Derelict 7669 | -5/Extension | Rescued a captive Derelict 7669 | -5/Extension | Rescued a captive Derelict 7675 | -5/Extension | Rescued a captive Derelict 7676 | -5/Extension | Rescued a captive Derelict 7687 | -5/Extension | Rescued a captive Derelict 7692 | -5/Extension | Rescued a captive Derelict 7918 | -5/Extension | Spotted B-75 Beast 7936 | -5/Extension | Destroyed B-75 Beast 7947 | -5/Extension | Spotted B-75 Beast 7953 | -5/Extension | Allies destroyed B-75 Beast 7969 | -5/Extension | Rescued a captive Derelict 7977 | -5/Extension | Rescued a captive Derelict 8121 | -5/Extension | Rescued A7 8143 | -5/Extension | Discovered exit to Factory (range 10) 8143 | -5/Extension | Discovered new exit (range 6) 8172 | -5/Extension | Identified exit to Cetus 8276 | -5/Extension | Entered Cetus 8276 | -5/Cetus | Accompanied by 18 allies 8281 | -5/Cetus | Acquired a Cetus Manufacturing Module code from A7 8311 | -5/Cetus | Spotted Cetus Guard 8311 | -5/Cetus | Spotted Cetus Guard 8312 | -5/Cetus | Spotted Cetus Guard 8312 | -5/Cetus | Spotted Cetus Guard 8316 | -5/Cetus | Allies destroyed Cetus Guard 8320 | -5/Cetus | Allies destroyed Cetus Guard 8322 | -5/Cetus | Allies destroyed Cetus Guard 8325 | -5/Cetus | Allies destroyed Cetus Guard 8340 | -5/Cetus | Started Cetus Manufacturing Module 8361 | -5/Cetus | Escorted A7 to Cetus Mainframe 8365 | -5/Cetus | Manufactured an Enhanced Grunt 8390 | -5/Cetus | Manufactured an Enhanced Grunt 8390 | -5/Cetus | Found a strange terminal 8399 | -5/Cetus | Discovered new exit (range 16) 8415 | -5/Cetus | Manufactured an Enhanced Grunt 8440 | -5/Cetus | Manufactured an Enhanced Grunt 8440 | -5/Cetus | Spotted Cetus Guard 8440 | -5/Cetus | Spotted Cetus Guard 8441 | -5/Cetus | Allies destroyed Cetus Guard 8442 | -5/Cetus | Spotted Cetus Guard 8442 | -5/Cetus | Spotted Cetus Guard 8446 | -5/Cetus | Allies destroyed Cetus Guard 8459 | -5/Cetus | Allies destroyed Cetus Guard 8465 | -5/Cetus | Manufactured an Enhanced Grunt 8467 | -5/Cetus | Allies destroyed Cetus Guard 8503 | -5/Cetus | Destroyed A7 8504 | -5/Cetus | Extracted ID and sensor layout for unrecognized location from A7's data core 8509 | -5/Cetus | Found Prototype Protection 8509 | -5/Cetus | Identified Med. Regenerative Plating 8531 | -5/Cetus | Identified exit to Archives 8565 | -5/Cetus | Entered Archives 8565 | -5/Archives | Accompanied by 15 allies 8588 | -5/Archives | Discovered new exit (range 15) 8594 | -5/Archives | Identified exit to Hub_04(d) 8636 | -5/Archives | Entered Hub_04(d) 8636 | -5/Hub_04(d) | Accompanied by 11 allies 8671 | -5/Hub_04(d) | Mak. Hacking Suite fried by hacking feedback 8676 | -5/Hub_04(d) | Discovered exit to Factory (range 15) 8709 | -5/Hub_04(d) | Discovered exit to Factory (range 15) 8719 | -5/Hub_04(d) | Network Hub disabled 8722 | -5/Hub_04(d) | Entered Factory 8722 | -4/Factory | Evolved 2 slots: Propulsion x1, Utility x1 8788 | -4/Factory | Fabricated Exp. Sensor Array (x1) 8957 | -4/Factory | Identified exit to Upper Caves 9090 | -4/Factory | Found Prototype Slashing Weapon 9090 | -4/Factory | Identified Vibroblade 9205 | -4/Factory | Found Prototype Hackware 9205 | -4/Factory | Identified Exp. System Shield 9211 | -4/Factory | Fabricated Exp. Sensor Array? 9490 | -4/Factory | Fabricated Exp. Signal Interpreter (x1) 9498 | -4/Factory | Entered Upper Caves 9530 | -4/Upper Caves | Found Alien Artifact 9558 | -4/Upper Caves | Discovered new exit (range 14) 9561 | -4/Upper Caves | Identified exit to Upper Caves 9564 | -4/Upper Caves | Entered another Upper Caves area 9607 | -4/Upper Caves | Build established: Scavenger-Scout 9853 | -4/Upper Caves | Found Alien Artifact 9853 | -4/Upper Caves | Identified Core Expander 9853 | -4/Upper Caves | Installed Core Expander, added new Propulsion slot 9944 | -4/Upper Caves | Encountered a Warlord checkpoint 10060 | -4/Upper Caves | Discovered new exit (range 8) 10062 | -4/Upper Caves | Identified exit to Warlord 10062 | -4/Upper Caves | Entered Warlord 10189 | -4/Warlord | Met Warlord 10199 | -4/Warlord | Found Prototype Device 10199 | -4/Warlord | Identified Exp. Phase Shifter 10204 | -4/Warlord | Found Prototype Reactor 10204 | -4/Warlord | Identified Vortex Chain Reactor 10211 | -4/Warlord | Found Prototype Processor 10211 | -4/Warlord | Identified Spectral Analyzer 10214 | -4/Warlord | Warlord's base attacked by MAIN.C 10352 | -4/Warlord | Opened side exit 10455 | -4/Warlord | Discovered new exit (range 9) 10457 | -4/Warlord | Identified exit to Proximity Caves 10457 | -4/Warlord | Entered Proximity Caves 10500 | -3/Proximity Caves | Build established: Hacker-Scout 10566 | -3/Proximity Caves | Spotted B-86 Titan 10567 | -3/Proximity Caves | Discovered new exit (range 14) 10569 | -3/Proximity Caves | Identified exit to Research 10569 | -3/Proximity Caves | Entered Research 10569 | -3/Research | Evolved 2 slots: Utility x2 10593 | -3/Research | Identified exit to Armory 10593 | -3/Research | Identified exit to Testing 10752 | -3/Research | Fabricated Electron Diverter? 10769 | -3/Research | Revision forces began assault on 0b10 10805 | -3/Research | Fabricated Electron Diverter? 10824 | -3/Research | Discovered new exit (range 18) 10878 | -3/Research | Local fabrication network quarantined 10939 | -3/Research | Entered Armory 11107 | -3/Armory | Fabricated Exp. Terrain Scan Processor? 11131 | -3/Armory | Found Prototype Launcher 11131 | -3/Armory | Identified Hellfire Missile Launcher 11135 | -3/Armory | Found Prototype Launcher 11135 | -3/Armory | Identified Tesla Bomb Launcher 11314 | -3/Armory | Fabricated Exp. Terrain Scanner? 11326 | -3/Armory | Assisted by bots powering up and referring to "LRC-V3" 11449 | -3/Armory | Fabricated Electron Diverter (x1) 11561 | -3/Armory | Fabricated Electron Diverter? 11665 | -3/Armory | Fabricated Electron Diverter (x1) 11699 | -3/Armory | Discovered new exit (range 26) 11734 | -3/Armory | First assault squad dispatched 11768 | -3/Armory | Fabricated Electron Diverter (x1) 11820 | -3/Armory | Identified exit to Lab 11820 | -3/Armory | Entered Lab 11820 | -3/Lab | Discovered new exit (range 9) 11822 | -3/Lab | Identified exit to Research 11823 | -3/Lab | Hidden lab's door opened automatically 11823 | -3/Lab | Sensor layout match revealed 11824 | -3/Lab | Gained access to the hidden lab's interior 11831 | -3/Lab | Found Prototype Energy Cannon 11831 | -3/Lab | Identified Potential Cannon 11836 | -3/Lab | Unable to decrypt terminal 11844 | -3/Lab | Found Prototype Protection 11844 | -3/Lab | Identified Hvy. Regenerative Plating 11847 | -3/Lab | Found Prototype Hackware 11848 | -3/Lab | Identified Deep Network Scanner 11873 | -3/Lab | Found Alien Artifact 11878 | -3/Lab | Found Alien Artifact 11884 | -3/Lab | Found Alien Artifact 11899 | -3/Lab | Entered Research 11899 | -2/Research | Warlord forces began assault on 0b10 11899 | -2/Research | Evolved 2 slots: Utility x2 11938 | -2/Research | Spotted B-90 Cyclops 11948 | -2/Research | Identified Core Regenerator 11954 | -2/Research | Spotted B-90 Cyclops 11962 | -2/Research | Identified Integrated Reactor 11962 | -2/Research | Identified Transdimensional Reconstructor 11962 | -2/Research | Installed Integrated Reactor, increased core energy generation (+10) 11963 | -2/Research | Used Core Regenerator, restored core integrity (+0) 11969 | -2/Research | Identified exit to Quarantine 12005 | -2/Research | Met up with Warlord 12009 | -2/Research | Research machine network offline 12080 | -2/Research | Found Prototype Processor 12080 | -2/Research | Identified Exp. Melee Analysis Suite 12120 | -2/Research | Build established: Machinist-Scout 12165 | -2/Research | Discovered new exit (range 28) 12171 | -2/Research | Borebot progress halted 12206 | -2/Research | Borebot progress halted 12281 | -2/Research | Borebot progress halted 12317 | -2/Research | Found Prototype Device 12317 | -2/Research | Identified Exp. Shield Generator 12331 | -2/Research | Borebot progress halted 12414 | -2/Research | Found Prototype Launcher 12414 | -2/Research | Identified Enh. Gamma Bomb Array 12458 | -2/Research | Found Prototype Device 12458 | -2/Research | Identified Exp. Force Field 12505 | -2/Research | Entered Quarantine 12506 | -2/Quarantine | Cryocooling Duct disabled 12514 | -2/Quarantine | Cryocooling Duct disabled 12521 | -2/Quarantine | Ambient heat levels rising (+20) 12521 | -2/Quarantine | Non-combat units ordered to evacuate 12529 | -2/Quarantine | Ambient heat levels rising (+20) 12529 | -2/Quarantine | Combat units ordered to evacuate 12530 | -2/Quarantine | Found Alien Artifact 12530 | -2/Quarantine | Identified Matter Drive 12558 | -2/Quarantine | Found Alien Slashing Weapon 12558 | -2/Quarantine | Identified Sigix Broadsword 12569 | -2/Quarantine | Found Alien Artifact 12569 | -2/Quarantine | Identified Stasis Generator 12595 | -2/Quarantine | Spotted Alpha 7 12602 | -2/Quarantine | Met incapacitated Sigix Warrior 12602 | -2/Quarantine | Lockdown squad dispatched 12615 | -2/Quarantine | Found Prototype Processor 12615 | -2/Quarantine | Identified Exp. Core Analyzer 12629 | -2/Quarantine | Quarantine Guard activated 12632 | -2/Quarantine | Cryocooling Duct disabled 12634 | -2/Quarantine | Cryocooling Duct disabled 12647 | -2/Quarantine | Ambient heat levels rising (+20) 12649 | -2/Quarantine | Ambient heat levels rising (+20) 12662 | -2/Quarantine | Cryocooling Duct disabled 12677 | -2/Quarantine | Ambient heat levels rising (+20) 12740 | -2/Quarantine | Spotted Quarantine Guard 12798 | -2/Quarantine | Spotted Quarantine Guard 13573 | -2/Quarantine | Discovered new exit (range 20) 13627 | -2/Quarantine | Found Alien Impact Weapon 13627 | -2/Quarantine | Identified Core Stripper 13736 | -2/Quarantine | Spotted Fortress 13926 | -2/Quarantine | Destroyed Fortress 13930 | -2/Quarantine | Found Prototype Device 13930 | -2/Quarantine | Identified EM Dispersion Field 13934 | -2/Quarantine | Found Prototype Device 13934 | -2/Quarantine | Identified Thermal Barrier 14043 | -2/Quarantine | Found Adv. Powered Armor 14143 | -2/Quarantine | Discovered new exit (range 20) 14153 | -2/Quarantine | Identified exit to Section 7 14154 | -2/Quarantine | Entered Section 7 14303 | -2/Section 7 | Spotted S7 Guard 14347 | -2/Section 7 | Discovered new exit (range 16) 14393 | -2/Section 7 | Spotted B-90 Cyclops 14396 | -2/Section 7 | Spotted S7 Guard 14396 | -2/Section 7 | Spotted Alpha 7 14398 | -2/Section 7 | Spotted Alpha 7 14405 | -2/Section 7 | Found Alien Artifact 14424 | -2/Section 7 | Found Integrated Reactor 14424 | -2/Section 7 | Installed Integrated Reactor, increased core energy generation (+10) 14447 | -2/Section 7 | Build established: Machinist-Sprinter 14456 | -2/Section 7 | Destroyed Alpha 7 14459 | -2/Section 7 | Found Prototype Processor 14459 | -2/Section 7 | Identified Exp. Target Analyzer 14468 | -2/Section 7 | Spotted S7 Guard 14479 | -2/Section 7 | Found Alien Artifact 14479 | -2/Section 7 | Identified Core Membrane 14479 | -2/Section 7 | Installed Core Membrane, gained immunity to corruption 14496 | -2/Section 7 | Found Integrated Reactor 14496 | -2/Section 7 | Installed Integrated Reactor, increased core energy generation (+10) 14527 | -2/Section 7 | Found Alien Artifact 14532 | -2/Section 7 | Found Alien Artifact 14561 | -2/Section 7 | Identified Integrity Redistributor 14561 | -2/Section 7 | Identified Integrated Dissipator 14561 | -2/Section 7 | Identified Core Reset Matrix 14561 | -2/Section 7 | Installed Integrated Dissipator, increased core heat dissipation (+20) 14689 | -2/Section 7 | Spotted B-99 Colossus 14717 | -2/Section 7 | Found Alien Artifact 14717 | -2/Section 7 | Identified LRC Boosters 14717 | -2/Section 7 | Installed LRC Boosters, increased mass support (+10) 14730 | -2/Section 7 | Found Integrity Redistributor 14730 | -2/Section 7 | Used Integrity Redistributor, redistributed integrity from core (-73) 14748 | -2/Section 7 | Found Transdimensional Reconstructor 14807 | -2/Section 7 | Identified exit to Access 14807 | -2/Section 7 | Entered Access 14807 | -1/Access | Evolved 2 slots: Propulsion x1, Utility x1 14918 | -1/Access | Discovered new exit (range 20) 15027 | -1/Access | Fabricated Exp. Sensor Array? 15094 | -1/Access | Identified exit to Command 15097 | -1/Access | Discovered new exit (range 27) 15197 | -1/Access | Fabricated Imp. Q-thruster (x1) 15249 | -1/Access | Entered Command 15288 | -1/Command | Phase Generator disabled 15372 | -1/Command | Destroyed 10 combat bots 15374 | -1/Command | Build established: Machinist-Scout 15434 | -1/Command | Spotted M Guard 15434 | -1/Command | Spotted M Guard 15434 | -1/Command | Spotted Combat Programmer 15434 | -1/Command | Spotted Combat Programmer 15457 | -1/Command | Destroyed Combat Programmer 15466 | -1/Command | Destroyed Combat Programmer 15515 | -1/Command | Destroyed M Guard 15546 | -1/Command | Destroyed M Guard 15546 | -1/Command | Destroyed all MAIN.C guards 15552 | -1/Command | Found Prototype Device 15552 | -1/Command | Identified AEGIS Remote Shield 15572 | -1/Command | Discovered new exit (range 28) 15597 | -1/Command | Spotted B-99 Colossus 15656 | -1/Command | Disengaged cave seal 15710 | -1/Command | Disengaged cave seal 15710 | -1/Command | Derelicts emerged from the dark tunnel 15778 | -1/Command | First assault squad dispatched 15881 | -1/Command | High security lockdown imminent 15890 | -1/Command | Enhanced Grunt warped into view, answering call for help 15898 | -1/Command | Enhanced Grunt warped into view, answering call for help 15946 | -1/Command | Met MAIN.C 15961 | -1/Command | High security lockdown engaged 15965 | -1/Command | Allies destroyed MAIN.C Shell 15965 | -1/Command | MAIN.C activated Command garrisons 15972 | -1/Command | 0b10 Conduit disabled 15985 | -1/Command | Allies destroyed MAIN.C 15987 | -1/Command | Found Prototype Protection 15987 | -1/Command | Identified Exp. Powered Armor 15998 | -1/Command | Found Exp. Powered Armor 16001 | -1/Command | Used Integrity Redistributor, redistributed integrity from core (-60) 16015 | -1/Command | Discovered new exit (range 29) 16022 | -1/Command | Spotted B-99 Colossus 16070 | -1/Command | Destroyed B-99 Colossus 16071 | -1/Command | Destroyed Z1-MDJ(K) 16074 | -1/Command | Found Exp. Melee Analysis Suite 16167 | -1/Command | Warped through subspace to slip node 16167 | -1/Command | Discovered new exit (range 5) 16185 | -1/Command | Entered Access_0 16186 | -1/Access_0 | Met Architect 16206 | -1/Access_0 | Found Core Regenerator 16213 | -1/Access_0 | A6 warped into view 16215 | -1/Access_0 | Found Alien Artifact 16238 | -1/Access_0 | Subspace Access Node disabled 16258 | -1/Access_0 | A5 warped into view 16262 | -1/Access_0 | Subspace Access Node disabled 16289 | -1/Access_0 | Build established: Machinist-Sprinter 16289 | -1/Access_0 | Subspace Access Node disabled 16304 | -1/Access_0 | Subspace Access Node disabled 16305 | -1/Access_0 | A4 warped into view 16319 | -1/Access_0 | Destroyed A4 16461 | -1/Access_0 | Destroyed A6 16468 | -1/Access_0 | Destroyed A5 16517 | -1/Access_0 | Destroyed A8 16609 | -1/Access_0 | DAS Turret deployed 16656 | -1/Access_0 | Found Prototype Device 16656 | -1/Access_0 | Identified Exp. Thermal Shield 17121 | -1/Access_0 | Found Prototype Device 17121 | -1/Access_0 | Identified Desublimator 17125 | -1/Access_0 | Found Exp. Phase Shifter 17197 | -1/Access_0 | Found Prototype Protection 17197 | -1/Access_0 | Identified Centrium Linked Plating 17268 | -1/Access_0 | Destroyed A2 17270 | -1/Access_0 | Extracted Singularity Gate Test 138-C access codes from A2's data core 17270 | -1/Access_0 | Found Prototype Hackware 17270 | -1/Access_0 | Identified Quantum Router 17290 | -1/Access_0 | A3 warped into view 17308 | -1/Access_0 | Destroyed A3 17311 | -1/Access_0 | Found Prototype Protection 17311 | -1/Access_0 | Identified Lgt. Regenerative Plating 17486 | -1/Access_0 | Build established: Scavenger-Sprinter 17631 | -1/Access_0 | Found Prototype Device 17631 | -1/Access_0 | Identified Exp. Weapon Cycler 17653 | -1/Access_0 | Found Integrated Reactor 17654 | -1/Access_0 | Installed Integrated Reactor, increased core energy generation (+10) 18064 | -1/Access_0 | Destroyed Architect 18065 | -1/Access_0 | Architect triggered a singularity event 18067 | -1/Access_0 | Identified Hpw. Transdimensional Reconstructor 18067 | -1/Access_0 | Warped through subspace to slip node 18067 | -1/Access_0 | Discovered new exit (range 8) 18075 | *** | Escaped singularity! Last Messages --------------- 17772_ Architect suffers critical hit. 17772_ Destroyed Exp. Phase Shifter. 17774_ Architect Centrium Linked Plating severed. 18058_ Destroyed Prototype Device. 18064_ Architect: "If I can't win, no one wins!" 18064_ Architect destroyed. 18065_ A0_COM: Initiating irreversible singularity event. Goodbye. 18066_ A0_COM: 10. 18067_ A0_COM: 9. 18067_ Identified Hpw. Transdimensional Reconstructor. 18067_ Warped through subspace, drawn to slip node. 18067_ EXIT=FOUND 18068_ A0_COM: 8. 18069_ A0_COM: 7. 18070_ A0_COM: 6. 18071_ A0_COM: 5. 18072_ A0_COM: 4. 18073_ A0_COM: 3. 18074_ A0_COM: 2. 18075_ A0_COM: 1. Map ----- +----------------------------------------------------+ | | | | | | | | | | | | | | | | | | | | | | | | | | | | | | | | | ?????????????????????????????????????????????????? | | ?????????????????????????????????????????????????? | | ?????????????????????????????????????????????????? | | ?????????????????????????????????????????????????? | | ?????????????????????????????????????????????????? | | ?????????????????????????????????????????????????? | | ????????????????????????###??????????????????????? | | ???????????????????????## ##?????????????????????? | | ???????????????????????# #?????????????????????? | | ???????????????????????# @ #?????????????????????? | | ??????????????????????## #?????????????????????? | | ??????????????????????# #?????????????????????? | | ??????????????????????# ##?????????????????????? | | ??????????????????????## #?????????????????????? | | ??????????????????????# #?????????????????????? | | ??????????????????????# ##?????????????????????? | | ??????????????????????# < #?????????????????????? | | ??????????????????????# ##?????????????????????? | | ??????????????????????## #??????????????????????? | | ???????????????????????####??????????????????????? | | ?????????????????????????????????????????????????? | | ?????????????????????????????????????????????????? | | ?????????????????????????????????????????????????? | | ?????????????????????????????????????????????????? | | ?????????????????????????????????????????????????? | | ?????????????????????????????????????????????????? | | ?????????????????????????????????????????????????? | | ?????????????????????????????????????????????????? | | ?????????????????????????????????????????????????? | | ?????????????????????????????????????????????????? | | ?????????????????????????????????????????????????? | | ?????????????????????????????????????????????????? | | ?????????????????????????????????????????????????? | | ?????????????????????????????????????????????????? | +----------------------------------------------------+ Best States ------------- Heat Dissipation 162 Coolant Potential 100 Energy Generation 115 Energy Capacity 1500 Matter Stores 300 Matter Capacity 800 Sight Range 16 Robot Scan Range 30 Terrain Scan Range 30 Terrain Scan Density 1010 Power Amplification 40 Additional Mass Support 12 Armor Coverage 900 Resistance: KI 30 Resistance: TH 30 Resistance: EM 75 Power Shielding 66 Propulsion Shielding 66 Melee Speed Boost 50 Phase Shifting 20 Evasion (%) 99 Melee Accuracy 24 Armor Integrity Analysis 66 Offensive Hacking 71 Defensive Hacking 16 Item Schematics ----------------- Aerolev Unit | -8/Materials | Scanalyzed Lrn. Sensor Array | -7/Factory | Hacked Adv. Signal Interpreter | -7/Factory | Hacked Imp. Cesium-ion Thruster | -6/Factory | Scanalyzed Riot Gun | -6/Zion | Free Barrage Gun | -6/Zion | Free Flamer | -6/Zion | Free Exp. Sensor Array | -5/Factory | Hacked Exp. Signal Interpreter | -5/Factory | Hacked Cmb. Gravmag System | -5/Extension | Hacked Electron Diverter | -3/Research | Hacked Exp. Terrain Scan Processor | -3/Armory | Hacked Exp. Terrain Scanner | -3/Armory | Hacked Imp. Q-thruster | -1/Access | Hacked Robot Schematics ------------------ None Fabricated ------------ Lrn. Sensor Array | x1 | -7/Factory Adv. Signal Interpreter | x2 | -6/Factory Imp. Cesium-ion Thruster | x1 | -6/Factory Imp. Cesium-ion Thruster | x1 | -6/Factory Imp. Cesium-ion Thruster | x1 | -6/Factory Imp. Cesium-ion Thruster | x1 | -5/Factory Lrn. Sensor Array | x1 | -5/Factory Imp. Cesium-ion Thruster | x1 | -5/Factory Exp. Sensor Array | x1 | -4/Factory Exp. Sensor Array | x1 | -4/Factory Exp. Signal Interpreter | x1 | -4/Factory Electron Diverter | x1 | -3/Research Electron Diverter | x1 | -3/Research Exp. Terrain Scan Processor | x1 | -3/Armory Exp. Terrain Scanner | x1 | -3/Armory Electron Diverter | x1 | -3/Armory Electron Diverter | x1 | -3/Armory Electron Diverter | x1 | -3/Armory Electron Diverter | x1 | -3/Armory Exp. Sensor Array | x1 | -1/Access Imp. Q-thruster | x1 | -1/Access Alien Tech Used ----------------- Core Expander Integrated Reactor Core Regenerator Matter Drive Sigix Broadsword Stasis Generator Core Stripper Core Membrane Integrated Dissipator LRC Boosters Integrity Redistributor Transdimensional Reconstructor High-powered Transdimensional Reconstructor Achievements -------------- None Challenges ------------ None Game ------ Seed SalvagePlasmaDesublimator Manual? 0 Play Time 05:21:56 Cumulative 312.4 hours Start 2020.06.27 @ 17:09:37 End 2020.06.27 @ 22:59:19 Sessions 3 Manual Loads 0 Difficulty Rogue Special Mode None Game No. 170 Rogue 170 Adventurer 0 Explorer 0 Win Type 6 Total 21 Types 9/5/4/1/0/0/2 Lore% 93 Gallery% 92 Achievement% 78 Wizard Run 0 Options --------- ASCII 0 Keyboard 0 Movement Numpad Keybinds 0 Fullscreen 2 Font 18/SmallcapsGlow Map View 76x50 Tactical HUD 1 Map Filters NONE Filters NONE Steam 1 RUN: 04e1ada9-a542-4e79-be6b-253979fc2bc4